Workbook

Sheet Hlavní stránka
B3: ReByJ 2.0
B4: Generace objemů pro rozpočet prací
C8: Název | E8: Rekonstrukce bytového jádra VVÚ ETA
C12: Ulice | E12: Na výšínách 99
C14: Město | E14: Praha 12
C16: PSČ | E16: 12000
C19: Předmět | E19: Celý rozpočet
C29: Verze 2.0 | H29: ReByJ 2.0
C30: - zadávání vstupů pro výpočet cen
C32: - generace položkového rozpočtu podle zadání
C34: Verze 1.3 | H34: ReByJ 1.3
C35: - formátování formulářů pro menší rozlišení obrazovky
C37: - zapojení přihlašovacího formuláře
C38: - definice uživatelských kont
C40: Verze 1.0 | H40: ReByJ 1.0
C41: - založení aplikace
C42: - definice vnitřní struktury

Sheet Settings (hidden)
A1: Users | B1: Administrator
A2: TRUE | B2: Ing. D. Čápová, Ph.D.
B3: doc. Ing. P. Dlask, Ph.D.
B4: Ing. P. Kalčev, Ph.D.
B5: Demo
B6: User1
B7: User2
B8: User3
B9: MMR1
B10: MMR2
B11: SFRB1
B12: SFRB2

Sheet Stávající stav
A1: Stávající stav
B3: Světlá výška
C4: 3.97
B6: Poschodí | L6: 2.3
C7: 1 | E7: pozn. přízemí uvažujte jako poschodí 1 | L7: 2.35
L8: 2.4
B9: Rozměry stávajícího BJ [m] | L9: 2.45
B11: A | E11: D | L11: 2.55
L12: 2.6
C13: WC | D13: Koupelna | L13: 2.65
L14: 2.7
C15: B | D15: C
C17: A = | D17: 1.36
C18: B = | D18: 0.94
C19: C = | D19: 1.6
C20: D = | D20: 2.53
C21: E = | D21: 1.6
C22: F = | D22: 0.9
B24: Stávající půdorys
B39: Dveře
B40: šířka | C40: 60 | D40: 70 | E40: 80 | F40: 90
B41: počet | C41: 1 | D41: 1 | E41: 1 | F41: 1
B44: Zařizovací předměty

Sheet Navrhovaný stav (hidden)
A1: Navrhovaný stav
B2: Materiál
B6: Rozměry navrhovaného BJ [m]
C7: F | D7: E
B8: A | E8: D
C10: WC | D10: Koupelna
C12: B | D12: C
C14: A = | D14: 1.4
C15: B= | D15: 0.93
C16: C = | D16: 1.66
C17: D = | D17: 1.74
C18: E = | D18: 1.66
C19: F = | D19: 0.93
B21: Stávající půdorys
B23: Zvolená varianta: | C23: ="Varianta " & 'Navrhovaný stav - pomocný'!C2 -> Varianta 1
B26: Úroveň standardu rekonstrukce
B33: Výška obkladu [m]
C34: 2
B35: Dveře | D35: =MID(INDEX('Zařizovací předměty - pomocný'!A3:A18,'Rozpočet-scénář'!C9),SEARCH(" cm",INDEX('Zařizovací předměty - pomocný'!A3:A18,'Rozpočet-scénář'!C9),1)-2,2)*1 -> 70 | F35: =MID(INDEX('Zařizovací předměty - pomocný'!A3:A18,'Rozpočet-scénář'!C17),SEARCH(" cm",INDEX('Zařizovací předměty - pomocný'!A3:A18,'Rozpočet-scénář'!C17),1)-2,2)*1 -> 60
D36: =F48 -> 1 | F36: =F49 -> 1
C38: Počet | D38: =IF($D$35=$D$37,$D$36,0)+IF($E$35=$D$37,$E$36,0)+IF($F$35=$D$37,$F$36,0)+IF($G$35=$D$37,$G$36,0) -> 0 | E38: =IF($D$35=$E$37,$D$36,0)+IF($E$35=$E$37,$E$36,0)+IF($F$35=$E$37,$F$36,0)+IF($G$35=$E$37,$G$36,0) -> 0 | F38: =IF($D$35=$F$37,$D$36,0)+IF($E$35=$F$37,$E$36,0)+IF($F$35=$F$37,$F$36,0)+IF($G$35=$F$37,$G$36,0) -> 0 | G38: =IF($D$35=$G$37,$D$36,0)+IF($E$35=$G$37,$E$36,0)+IF($F$35=$G$37,$F$36,0)+IF($G$35=$G$37,$G$36,0) -> 0
A39: zakrývání | B39: 610991111 | C39: plocha dveří (pomocné) | D39: =D35/100*1.97*D36 -> 1.379 | E39: =F35/100*1.97*F36 -> 1.182 | F39: =0.8*1.97*F38 -> 0 | G39: =0.9*1.97*G38 -> 0
A40: nátěr | B40: 783221112 | C40: nátěr zárubní ocelových | D40: =((0.2*2*1.97)+(D35/100*0.1))*D36 -> 0.858 | E40: =((0.2*2*1.97)+(F35/100*0.1))*F36 -> 0.848 | F40: =((0.2*2*1.97)+(0.8*0.1)) -> 0.868 | G40: =((0.2*2*1.97)+(0.9*0.1)) -> 0.878
B46: ='zařizovací předměty'!B1 -> Dveře
F47: Počet (ks) | G47: Vlastní počet (ks) | K47: Použitý počet (ks) | L47: Použitá cena (Kč/ks) | M47: Celková cena (Kč)
B48: 1. | F48: 1 | K48: =IF(G48="",G50,G48) -> 2 | L48: =L53 -> 1500 | M48: =K48*L48 -> 3000
B49: 2. | F49: 1
G50: =F48+F49 -> 2
B51: Dveřní křídla
F52: Počet (ks) | G52: Vlastní počet (ks) | H52: Orientační cena (Kč/ks) | I52: Vlastní cena (Kč/ks) | K52: Použitý počet (ks) | L52: Použitá cena (Kč/ks) | M52: Celková cena (Kč)
F53: =F48 -> 1 | H53: ='Navrhovaný stav - pomocný'!F67 -> 1500 | K53: =IF(G53="",F53,G53) -> 1 | L53: =IF(I53="",H53,I53) -> 1500 | M53: =K53*L53+K54*L54 -> 3000
B54: Dveřní kování | F54: =F49 -> 1 | H54: =H53 -> 1500 | K54: =IF(G54="",F54,G54) -> 1 | L54: =IF(I54="",H54,I54) -> 1500
F55: Počet (ks) | G55: Vlastní počet (ks) | H55: Orientační cena (Kč/ks) | I55: Vlastní cena (Kč/ks) | K55: Použitý počet (ks) | L55: Použitá cena (Kč/ks) | M55: Celková cena (Kč)
F56: =G50 -> 2 | G56: 3 | H56: ='Navrhovaný stav - pomocný'!F78 -> 350 | K56: =IF(G56="",F56,G56) -> 3 | L56: =IF(I56="",H56,I56) -> 350 | M56: =K56*L56 -> 1050
B58: ='zařizovací předměty'!B5 -> Obklad
D59: =IF('Navrhovaný stav - pomocný'!D40=1,"Nevybírat ze seznamu - uvažuje se kámen Technistone Light, cena cca 2 500 Kč/m2","") ->  | F59: Počet (m2) | G59: Vlastní počet (m2) | H59: Orientační cena (Kč/m2) | I59: Vlastní cena (Kč/m2) | K59: Použitý počet (m2) | L59: Použitá cena (Kč/m2) | M59: Celková cena (Kč)
D60: TRUE | F60: ='Navrhovaný stav - pomocný'!E10 -> 17.5605 | G60: 20.17 | H60: ='Navrhovaný stav - pomocný'!F68 -> 350 | I60: 300 | K60: =IF(G60="",F60,G60)*IF(D60=TRUE(),1.1,1) -> 22.187 | L60: =IF(I60="",H60,I60) -> 300 | M60: =K60*L60 -> 6656.1
B61: Pomůcka na přepočet pro ks/m2
B62: šířka obkládačky [cm] | C62: délka obkládačky [cm] | E62: ks/m2
B63: 33 | C63: 33 | E63: =1/(B63*C63/10000) -> 9.182736455
K64: =IF(G60="",F60,G60) -> 20.17
B65: ='zařizovací předměty'!B9 -> Dlažba
D66: =IF('Navrhovaný stav - pomocný'!D40=1,"Nevybírat ze seznamu - uvažuje se kámen Technistone Light, cena cca 2 500 Kč/m2","") ->  | F66: Počet (m2) | G66: Vlastní počet (m2) | H66: Orientační cena (Kč/m2) | I66: Vlastní cena (Kč/m2) | K66: Použitý počet (m2) | L66: Použitá cena (Kč/m2) | M66: Celková cena (Kč)
D67: TRUE | F67: ='Navrhovaný stav - pomocný'!E15 -> 2.7318 | H67: ='Navrhovaný stav - pomocný'!F69 -> 350 | I67: 330 | K67: =IF(G67="",F67,G67)*IF(D67=TRUE(),1.1,1) -> 3.00498 | L67: =IF(I67="",H67,I67) -> 330 | M67: =K67*L67 -> 991.6434
B68: Pomůcka na přepočet pro ks/m2
B69: šířka dlaždice [cm] | C69: délka dlaždice [cm] | E69: ks/m2
B70: 33 | C70: 33 | E70: =1/(B70*C70/10000) -> 9.182736455
K71: =IF(G67="",F67,G67) -> 2.7318
B72: WC
F73: Počet (ks) | G73: Vlastní počet (ks) | H73: Orientační cena (Kč/ks) | I73: Vlastní cena (Kč/ks) | K73: Použitý počet (ks) | L73: Použitá cena (Kč/ks) | M73: Celková cena (Kč)
F74: 1 | H74: ='Navrhovaný stav - pomocný'!F70 -> 2500 | K74: =IF(G74="",F74,G74) -> 1 | L74: =IF(I74="",H74,I74) -> 2500 | M74: =K74*L74 -> 2500
B76: Bidet | D76: FALSE
F77: Počet (ks) | G77: Vlastní počet (ks) | H77: Orientační cena (Kč/ks) | I77: Vlastní cena (Kč/ks) | K77: Použitý počet (ks) | L77: Použitá cena (Kč/ks) | M77: Celková cena (Kč)
F78: 1 | H78: ='Navrhovaný stav - pomocný'!F71 -> 2500 | K78: =IF(G78="",F78,G78) -> 1 | L78: =IF(I78="",H78,I78) -> 2500 | M78: =K78*L78 -> 2500
B79: Baterie bidetová
F80: Počet (ks) | G80: Vlastní počet (ks) | H80: Orientační cena (Kč/ks) | I80: Vlastní cena (Kč/ks) | K80: Použitý počet (ks) | L80: Použitá cena (Kč/ks) | M80: Celková cena (Kč)
F81: 1 | G81: 2 | H81: ='Navrhovaný stav - pomocný'!F80 -> 1500 | I81: 4000 | K81: =IF(G81="",F81,G81) -> 2 | L81: =IF(I81="",H81,I81) -> 4000 | M81: =K81*L81 -> 8000
B83: Vana | D83: TRUE
C84: FALSE | D84: Počet (ks) | E84: Vlastní počet (ks) | F84: Délka [m] | G84: Šířka [m] | H84: Orientační cena (Kč/ks) | I84: Vlastní cena (Kč/ks) | K84: Použitý počet (ks) | L84: Použitá cena (Kč/ks) | M84: Celková cena (Kč)
D85: 1 | F85: 1.77 | G85: 0.75 | H85: ='Navrhovaný stav - pomocný'!F72 -> 4000 | K85: =IF(E85="",D85,E85) -> 1 | L85: =IF(I85="",H85,I85) -> 4000 | M85: =K85*L85 -> 4000
B86: Baterie vanová
F87: Počet (ks) | G87: Vlastní počet (ks) | H87: Orientační cena (Kč/ks) | I87: Vlastní cena (Kč/ks) | K87: Použitý počet (ks) | L87: Použitá cena (Kč/ks) | M87: Celková cena (Kč)
F88: 1 | G88: 0 | H88: ='Navrhovaný stav - pomocný'!F81 -> 2000 | K88: =IF(G88="",F88,G88) -> 0 | L88: =IF(I88="",H88,I88) -> 2000 | M88: =K88*L88 -> 0
B90: Sprcha | D90: TRUE
D91: Počet (ks) | E91: Vlastní počet (ks) | F91: Délka [m] | G91: Šířka [m] | H91: Orientační cena (Kč/m2) | I91: Vlastní cena (Kč/ks) | K91: Použitý počet (ks) | L91: Použitá cena (Kč/ks) | M91: Celková cena (Kč)
D92: 1 | F92: 0.23 | G92: 0.57 | H92: ='Navrhovaný stav - pomocný'!F73 -> 2000 | I92: 340 | K92: =IF(E92="",D92,E92) -> 1 | L92: =IF(I92="",H92,I92) -> 340 | M92: =K92*L92 -> 340
B93: Sprchová zástěna
F94: Počet (ks) | G94: Vlastní počet (ks) | H94: Orientační cena (Kč/ks) | I94: Vlastní cena (Kč/ks) | K94: Použitý počet (ks) | L94: Použitá cena (Kč/ks) | M94: Celková cena (Kč)
F95: =D92 -> 1 | H95: ='Navrhovaný stav - pomocný'!F74 -> 5000 | K95: =IF(G95="",F95,G95) -> 1 | L95: =IF(I95="",H95,I95) -> 5000 | M95: =K95*L95 -> 5000
B96: Baterie sprchová
F97: Počet (ks) | G97: Vlastní počet (ks) | H97: Orientační cena (Kč/ks) | I97: Vlastní cena (Kč/ks) | K97: Použitý počet (ks) | L97: Použitá cena (Kč/ks) | M97: Celková cena (Kč)
F98: 1 | H98: ='Navrhovaný stav - pomocný'!F82 -> 2000 | K98: =IF(G98="",F98,G98) -> 1 | L98: =IF(I98="",H98,I98) -> 2000 | M98: =K98*L98 -> 2000
B100: Umyvadlo
F101: Počet (ks) | G101: Vlastní počet (ks) | H101: Orientační cena (Kč/ks) | I101: Vlastní cena (Kč/ks) | K101: Použitý počet (ks) | L101: Použitá cena (Kč/ks) | M101: Celková cena (Kč)
F102: 1 | H102: ='Navrhovaný stav - pomocný'!F75 -> 2000 | K102: =IF(G102="",F102,G102) -> 1 | L102: =IF(I102="",H102,I102) -> 2000 | M102: =K102*L102 -> 2000
B103: Baterie umyvadlová
F104: Počet (ks) | G104: Vlastní počet (ks) | H104: Orientační cena (Kč/ks) | I104: Vlastní cena (Kč/ks) | K104: Použitý počet (ks) | L104: Použitá cena (Kč/ks) | M104: Celková cena (Kč)
F105: 1 | H105: ='Navrhovaný stav - pomocný'!F83 -> 1800 | K105: =IF(G105="",F105,G105) -> 1 | L105: =IF(I105="",H105,I105) -> 1800 | M105: =K105*L105 -> 1800
B107: Otopný žebřík | D107: TRUE
F108: Počet (ks) | G108: Vlastní počet (ks) | H108: Orientační cena (Kč/ks) | I108: Vlastní cena (Kč/ks) | K108: Použitý počet (ks) | L108: Použitá cena (Kč/ks) | M108: Celková cena (Kč)
F109: 1 | H109: ='Navrhovaný stav - pomocný'!F76 -> 2000 | K109: =IF(G109="",F109,G109) -> 1 | L109: =IF(I109="",H109,I109) -> 2000 | M109: =K109*L109 -> 2000
B111: SDK podhled | D111: TRUE
K112: Použitý počet (m2) | L112: Použitá cena (Kč/m2) | M112: Celková cena (Kč)
K113: ='Navrhovaný stav - pomocný'!E16 -> 4.1904 | L113: ='kros seznam'!G133+'kros seznam'!G140 -> 597.7 | M113: =K113*L113 -> 2504.60208
B115: Podlahové topení | D115: TRUE
K116: Použitý počet (m2) | L116: Použitá cena (Kč/m2) | M116: Celková cena (Kč)
K117: ='Navrhovaný stav - pomocný'!E15 -> 2.7318 | L117: ='kros seznam'!G125 -> 1400 | M117: =K117*L117 -> 3824.52

Sheet Rozpočet final
A1: Položkový rozpočet
B3: Celková cena bez DPH | D3: ='Rozpocet-rekapitulace'!D29 -> 116791.4776
B4: DPH 14% | D4: =0.14*D3 -> 16350.80686
B5: Celková cena s DPH | D5: =1.1*D3 -> 128470.6253
A9: TV | B9: Kód položky | C9: Popis | D9: MJ | E9: Množství | F9: J. cena | G9: Celková cena | H9: Jednotková hmotnost | I9: Celková hmotnost | J9: Jednotková suť | K9: Suť celkem | L9: Nh | M9: Nh celkem
A10: D | B10: 3 | C10: Svislé a kompletní konstrukce | G10: =SUM(G11:G13) -> 20497.373 | I10: =SUM(I11:I13) -> 2.922667205 | K10: =SUM(K11:K13) -> 0 | M10: =SUM(M11:M13) -> 17.3341195
A11: K | B11: 346272111 | C11: Přizdívky tl 50 mm z pórobetonových přesných příčkovek Ytong objemové hmotnosti 500 kg/m3 | D11: m2 | E11: 1.116 | F11: 398 | G11: 444.168 | H11: 0.0415 | I11: 0.046314 | J11: 0 | K11: 0
A12: K | B12: 342272423 | C12: Příčky tl 125 mm z pórobetonových přesných příčkovek objemové hmotnosti 500 kg/m3 | D12: m2 | E12: 32.1368 | F12: 610 | G12: 19603.448 | H12: 0.088 | I12: 2.8280384 | J12: 0 | L12: 0.515 | M12: 16.550452
A13: K | B13: 346244352 | C13: Obezdívka koupelnových van ploch rovných tl 50 mm z pórobetonových přesných příčkovek hladkých Ytong | D13: m2 | E13: 0.9735 | F13: 462 | G13: 449.757 | H13: 0.04963 | I13: 0.048314805 | J13: 0 | K13: 0 | L13: 0.805 | M13: 0.7836675
A14: D | B14: 6 | C14: Úpravy povrchů, podlahy a osazování výplní | G14: =SUM(G15:G18) -> 10424.58028 | I14: =SUM(I15:I18) -> 0.3983022904 | K14: =SUM(K15:K18) -> 0 | M14: =SUM(M15:M18) -> 23.8758728
A15: K | B15: 611471620 | C15: Vyspravení vnitřních prefabrikovaných stěn stěrkovou hmotou do 20 % plochy | D15: m2 | E15: 10.2823 | F15: 45.2 | G15: 464.75996 | H15: 0.00154 | I15: 0.015834742 | J15: 0 | K15: 0 | L15: 0.078 | M15: 0.8020194
A16: K | B16: 612471411 | C16: Tenkovrstvá úprava vnitřních stěn tl do 3 mm aktivovaným štukem | D16: m2 | E16: 10.2823 | F16: 81.01 | G16: 832.969123 | H16: 0.0045045 | I16: 0.04631662035 | J16: 0 | K16: 0 | L16: 0.25 | M16: 2.570575
A17: K | B17: 612474115 | C17: Vnitřní omítka pórobetonových stěn tl 8 mm ze suché směsi Ytong | D17: m2 | E17: 32.1368 | F17: 180 | G17: 5784.624 | H17: 0.0096 | I17: 0.30851328 | J17: 0 | K17: 0 | L17: 0.408 | M17: 13.1118144
A18: K | B18: 612481113 | C18: Potažení vnitřních stěn sklovláknitým pletivem vypnutým včetně přibití strun | D18: m2 | E18: 32.1368 | F18: 104 | G18: 3342.2272 | H18: 0.00086 | I18: 0.027637648 | J18: 0 | K18: 0 | L18: 0.23 | M18: 7.391464
A19: D | B19: 9 | C19: Ostatní konstrukce a práce-bourání | G19: =SUM(G20:G24) -> 3349.423337 | I19: =SUM(I20:I24) -> 0 | K19: =SUM(K20:K24) -> 0 | M19: =SUM(M20:M24) -> 0.278809292
A20: K | B20: 979081111 | C20: Odvoz suti a vybouraných hmot na skládku do 1 km | D20: t | E20: 1.85179065 | F20: 365 | G20: 675.9035872 | H20: 0 | I20: 0 | J20: 0 | K20: 0 | L20: 0.05096 | M20: 0.08925106729
A21: K | B21: 979081121 | C21: Odvoz suti a vybouraných hmot na skládku ZKD 1 km přes 1 km | D21: t | E21: 1.85179065 | F21: 13.8 | G21: 25.55471097 | H21: 0 | I21: 0 | J21: 0 | K21: 0 | L21: 0 | M21: 0
A22: K | B22: 979082111 | C22: Vnitrostaveništní vodorovná doprava suti a vybouraných hmot do 10 m | D22: t | E22: 1.84218145 | F22: 217 | G22: 399.7533747 | H22: 0 | I22: 0 | J22: 0 | K22: 0 | L22: 0.097968 | M22: 0.1705480875
A23: K | B23: 979082121 | C23: Vnitrostaveništní vodorovná doprava suti a vybouraných hmot ZKD 5 m přes 10 m | D23: t | E23: 1.84218145 | F23: 24.2 | G23: 44.58079109 | H23: 0 | I23: 0 | J23: 0 | K23: 0 | L23: 0.01092 | M23: 0.01901013715
A24: K | B24: 979098231 | C24: Poplatek za uložení stavebního směsného odpadu na skládce (skládkovné) | D24: t | E24: 1.85179065 | F24: 1190 | G24: 2203.630874 | H24: 0 | I24: 0 | J24: 0 | K24: 0 | L24: 0 | M24: 0
A25: D | B25: 99 | C25: Přesun hmot | G25: =SUM(G26:G28) -> 1274.943149 | I25: =SUM(I26:I28) -> 0 | K25: =SUM(K26:K28) -> 0 | M25: =SUM(M26:M28) -> 1.8521568
A26: K | B26: 949121111 | C26: Lešení lehké pomocné kozové dílcové o výšce lešeňové podlahy do 1,2 m | D26: m2 | E26: 4.1904 | F26: 89.7 | G26: 375.87888 | H26: 0 | I26: 0 | J26: 0 | K26: 0 | L26: 0.134 | M26: 0.5615136
A27: K | B27: 952901111 | C27: Vyčištění budov bytové a občanské výstavby při výšce podlaží do 4 m | D27: m2 | E27: 4.1904 | F27: 71.9 | G27: 301.28976 | H27: 0 | I27: 0 | J27: 0 | K27: 0 | L27: 0.308 | M27: 1.2906432
A28: K | B28: 998011031 | C28: Přesun hmot pro budovy z bloků výšky do 6 m | D28: t | E28: ='Rozpočet final'!I10+'Rozpočet final'!I14 -> 3.320969495 | F28: 180 | G28: 597.7745092 | H28: 0 | I28: 0 | J28: 0 | K28: 0 | L28: 0 | M28: 0
A29: D | B29: 711 | C29: Izolace proti vodě, vlhkosti a plynům | G29: =SUM(G30:G32) -> 4539.287438 | I29: =SUM(I30:I32) -> 0.0677445 | K29: =SUM(K30:K32) -> 0 | M29: =SUM(M30:M32) -> 3.896071401
A30: K | B30: 711493112 | C30: Izolace proti podpovrchové a tlakové vodě vodorovná SCHOMBURG těsnicí stěrkou AQUAFIN-1K | D30: m2 | E30: 3.8778 | F30: 295 | G30: 1143.951 | H30: 0.0045 | I30: 0.0174501 | J30: 0 | K30: 0 | L30: 0.22 | M30: 0.853116
A31: K | B31: 711493122 | C31: Izolace proti podpovrchové a tlakové vodě svislá SCHOMBURG těsnicí stěrkou AQUAFIN-1K | D31: m2 | E31: 10.14 | F31: 329 | G31: 3336.06 | H31: 0.00496 | I31: 0.0502944 | J31: 0 | K31: 0 | L31: 0.3 | M31: 3.042
A32: K | B32: 998711101 | C32: Přesun hmot pro izolace proti vodě, vlhkosti a plynům v objektech výšky do 6 m | D32: t | E32: 0.0677445 | F32: 875 | G32: 59.2764375 | H32: 0 | I32: 0 | J32: 0 | K32: 0 | L32: 0.014103 | M32: 0.0009554006835
A33: D | B33: 721 | C33: Zdravotechnika - vnitřní kanalizace | G33: 6000 | H33: 0 | I33: 0 | J33: 0 | L33: 0
A34: K | B34: 721X | C34: Potrubí kanalizační plastové D+M | D34: soubor | E34: 1 | F34: 6000 | G34: 6000 | H34: 0 | I34: 0 | J34: 0 | K34: 0 | L34: 0
A35: D | B35: 722 | C35: Zdravotechnika - vnitřní vodovod | G35: 6000 | H35: 0 | I35: 0 | J35: 0 | L35: 0
A36: K | B36: 722X | C36: Potrubí vodovodní plastové D+M | D36: soubor | E36: 1 | F36: 6000 | G36: 6000 | H36: 0 | I36: 0 | J36: 0 | K36: 0 | L36: 0
A37: D | B37: 725 | C37: Zdravotechnika - zařizovací předměty | G37: =SUM(G38:G48) -> 17747.90147 | I37: =SUM(I38:I48) -> 0.10699 | K37: =SUM(K38:K48) -> 0.0096092 | M37: =SUM(M38:M48) -> 17.36414878
A38: K | B38: 725820802 | C38: Demontáž baterie stojánkové | D38: soubor | E38: 1 | F38: 62 | G38: 62 | H38: 0 | I38: 0 | J38: 0.00086 | K38: 0.00086 | L38: 0.222 | M38: 0.222
A39: K | B39: 725112X | C39: Geberit D+M | D39: soubor | E39: 1 | F39: 2500 | G39: 2500 | H39: 0.0252 | I39: 0.0252 | J39: 0 | K39: 0 | L39: 2.5 | M39: 2.5
A40: K | B40: 725211602 | C40: Umyvadlo keramické D+M | D40: soubor | E40: 1 | F40: 2300 | G40: 2300 | H40: 0.01552 | I40: 0.01552 | J40: 0 | K40: 0 | L40: 1.1 | M40: 1.1
A41: K | B41: 725220832 | C41: Demontáž van litinová volná | D41: soubor | E41: 1 | F41: 112 | G41: 112 | H41: 0 | I41: 0 | J41: 0.0087492 | K41: 0.0087492 | L41: 0.037076 | M41: 0.037076
A42: K | B42: 725222116 | C42: Vana bez armatur výtokových akrylátová se zápachovou uzávěrkou D+M | D42: soubor | E42: 1 | F42: 4750 | G42: 4750 | H42: 0.0191 | I42: 0.0191 | J42: 0 | K42: 0 | L42: 2.462 | M42: 2.462
A43: K | B43: 725243111 | C43: Box sprchový masážní a parní D+M | D43: soubor | E43: 1 | F43: 1340 | G43: 1340 | H43: 0.04117 | I43: 0.04117 | J43: 0 | K43: 0 | L43: 11.04 | M43: 11.04
A44: K | B44: 725590811 | C44: Přemístění vnitrostaveništní demontovaných pro zařizovací předměty v objektech výšky do 6 m | D44: t | E44: 0.0096092 | F44: 1080 | G44: 10.377936 | H44: 0 | I44: 0 | J44: 0 | K44: 0 | L44: 0.291548 | M44: 0.003072775977
A45: K | B45: 725822654 | C45: Baterie umyvadlová termostatická D+M | D45: soubor | E45: 1 | F45: 2115 | G45: 2115 | H45: 0.002 | I45: 0.002 | J45: 0 | K45: 0
A46: K | B46: 725831315 | C46: Baterie vanová páková D+M | D46: soubor | E46: 1 | F46: 2250 | G46: 2250 | H46: 0.002 | I46: 0.002 | K46: 0
A47: K | B47: 725841333 | C47: Baterie sprchová zápustná s přepínačem a pevnou sprchou D+M | D47: soubor | E47: 1 | F47: 2250 | G47: 2250 | H47: 0.002 | I47: 0.002 | K47: 0
A48: K | B48: 998725101 | C48: Přesun hmot pro zařizovací předměty v objektech v do 6 m | D48: t | E48: 0.10699 | F48: 547 | G48: 58.52353 | I48: 0 | K48: 0
A49: D | B49: 735 | C49: Ústřední vytápění - otopná tělesa | G49: =SUM(G50:G51) -> 4000 | I49: =SUM(I50:I51) -> 0.013 | K49: =SUM(K50:K51) -> 0 | M49: =SUM(M50:M51) -> 
A50: K | B50: 735152112 | C50: Otopné těleso panelové D+M | D50: kus | E50: 1 | F50: 2600 | G50: 2600 | H50: 0.013 | I50: 0.013 | J50: 0 | K50: 0 | L50: 0
A51: K | B51: 735X | C51: Podlahové vytápění - topné rohože D+M | D51: m2 | E51: 1 | F51: 1400 | G51: 1400 | H51: 0 | I51: 0 | J51: 0 | K51: 0 | L51: 0 | M51: 0
A52: D | B52: 763 | C52: Konstrukce montované z desek, dílců a panelů | G52: =SUM(G53:G61) -> 12803.54805 | I52: =SUM(I53:I61) -> 0.092061856 | K52: =SUM(K53:K61) -> 1.74085505 | M52: =SUM(M53:M61) -> 19.0585476
A53: M | B53: 553316110 | C53: pouzdro stavební STANDARD S700-070 700 mm | D53: kus | E53: 1 | F53: 5970 | G53: 5970 | H53: 0.037 | I53: 0.037 | J53: 0 | L53: 0 | M53: 0
A54: K | B54: 763111811 | C54: Demontáž SDK příčky s jednoduchou ocelovou nosnou konstrukcí opláštění jednoduché | D54: m2 | E54: 45.655 | F54: 55.2 | G54: 2520.156 | H54: 0 | I54: 0 | J54: 0.03175 | K54: 1.44954625 | L54: 0.198 | M54: 9.03969
A55: K | B55: 763131451 | C55: SDK podhled deska 1xH2 12,5 bez TI dvouvrstvá spodní kce profil CD+UD | D55: m2 | E55: 4.1904 | F55: 574 | G55: 2405.2896 | H55: 0.01314 | I55: 0.055061856 | J55: 0 | K55: 0 | L55: 0.968 | M55: 4.0563072
A56: K | B56: 763131714 | C56: SDK podhled základní penetrační nátěr | D56: m2 | E56: 4.1904 | F56: 23.7 | G56: 99.31248 | H56: 0 | I56: 0 | J56: 0 | K56: 0 | L56: 0.04 | M56: 0.167616
A57: K | B57: 763131831 | C57: Demontáž SDK podhledu s jednovrstvou nosnou kcí z ocelových profilů opláštění jednoduché | D57: m2 | E57: 5.3264 | F57: 61.6 | G57: 328.10624 | H57: 0 | I57: 0 | J57: 0.01725 | K57: 0.0918804 | L57: 0.221 | M57: 1.1771344
A58: K | B58: 763151811 | C58: Demontáž jedné vrstvy desek SDK podlaha | D58: m2 | E58: 5.3264 | F58: 34.9 | G58: 185.89136 | H58: 0 | I58: 0 | J58: 0.02475 | K58: 0.1318284 | L58: 0.125 | M58: 0.6658
A59: K | B59: 763181811 | C59: Demontáž jednokřídlové kovové zárubně v do 2,75 m SDK příčka | D59: kus | E59: 4 | F59: 83.7 | G59: 334.8 | H59: 0 | I59: 0 | J59: 0.0169 | K59: 0.0676 | L59: 0.3 | M59: 1.2
A60: K | B60: 763183111 | C60: Montáž pouzdra posuvných dveří s jednou kapsou pro jedno křídlo šířky do 800 mm do SDK příčky | D60: kus | E60: 1 | F60: 888 | G60: 888 | H60: 0 | I60: 0 | J60: 0 | K60: 0 | L60: 2.752 | M60: 2.752
A61: K | B61: 998763301 | C61: Přesun hmot pro sádrokartonové konstrukce v objektech v do 6 m | D61: t | E61: 0.092061856 | F61: 782 | G61: 71.99237139 | I61: 0 | K61: 0
A62: D | B62: 766 | C62: Konstrukce truhlářské | G62: =SUM(G63:G69) -> 6306.55305 | I62: =SUM(I63:I69) -> 0.03045 | K62: =SUM(K63:K69) -> 0.096 | M62: =SUM(M63:M69) -> 4.93
A63: M | B63: 611617170 | C63: dveře vnitřní 1křídlové 70x197 cm | D63: kus | E63: 1 | F63: 1500 | G63: 1500 | H63: 0.014 | I63: 0.014 | J63: 0 | L63: 0 | M63: 0
A64: M | B64: 611822580 | C64: zárubeň obložková pro dveře 1křídlové 60,70,80,90x197 cm, tl. 8 - 17 cm | D64: kus | E64: 1 | F64: 2870 | G64: 2870 | H64: 0.016 | I64: 0.016 | J64: 0 | L64: 0 | M64: 0
A65: K | B65: 766660171 | C65: Montáž dveřních křídel otvíravých 1křídlových š do 0,8 m do obložkové zárubně | D65: kus | E65: 1 | F65: 538 | G65: 538 | H65: 0 | I65: 0 | J65: 0 | K65: 0 | L65: 1.805 | M65: 1.805
A66: K | B66: 766682111 | C66: Montáž zárubní obložkových pro dveře jednokřídlové tl stěny do 170 mm | D66: kus | E66: 1 | F66: 945 | G66: 945 | H66: 0.00045 | I66: 0.00045 | J66: 0 | K66: 0 | L66: 2.925 | M66: 2.925
A67: K | B67: 766691914 | C67: Vyvěšení nebo zavěšení dřevěných křídel dveří pl do 2 m2 | D67: kus | E67: 4 | F67: 21.1 | G67: 84.4 | H67: 0 | I67: 0 | J67: 0.024 | K67: 0.096 | L67: 0.05 | M67: 0.2
A68: K | B68: 766X | C68: Dveřního kování D+M | D68: kus | E68: 1 | F68: 350 | G68: 350 | H68: 0 | I68: 0 | J68: 0 | K68: 0 | L68: 0 | M68: 0
A69: K | B69: 998766101 | C69: Přesun hmot pro konstrukce truhlářské v objektech v do 6 m | D69: t | E69: 0.03045 | F69: 629 | G69: 19.15305 | I69: 0 | K69: 0
A70: D | B70: 771 | C70: Podlahy z dlaždic | G70: =SUM(G71:G74) -> 1815.376309 | I70: =SUM(I71:I74) -> 0.0498881316 | K70: =SUM(K71:K74) -> 0 | M70: =SUM(M71:M74) -> 1.7565474
A71: M | B71: 597610690 | C71: dlaždice keramické do 25 ks/m2 | D71: m2 | E71: 3.00498 | F71: 330 | G71: 991.6434 | H71: 0.01342 | I71: 0.0403268316 | J71: 0 | L71: 0 | M71: 0
A72: K | B72: 771574116 | C72: Montáž podlah keramických režných hladkých lepených flexibilním lepidlem do 25 ks/m2 | D72: m2 | E72: 2.7318 | F72: 284 | G72: 775.8312 | H72: 0.0035 | I72: 0.0095613 | J72: 0 | K72: 0 | L72: 0.613 | M72: 1.6745934
A73: K | B73: 771579191 | C73: Příplatek k montáž podlah keramických za plochu do 5 m2 | D73: m2 | E73: 2.7318 | F73: 9.39 | G73: 25.651602 | H73: 0 | I73: 0 | J73: 0 | K73: 0 | L73: 0.03 | M73: 0.081954
A74: K | B74: 998771101 | C74: Přesun hmot pro podlahy z dlaždic v objektech v do 6 m | D74: t | E74: 0.0498881316 | F74: 446 | G74: 22.25010669 | I74: 0 | K74: 0
A75: D | B75: 776 | C75: Podlahy povlakové | G75: 378.70704 | H75: 0 | I75: 0 | J75: 0.001 | K75: 0.0053264 | L75: 0.255 | M75: 1.358232
A76: K | B76: 776511820 | C76: Demontáž povlakových podlah lepených s podložkou | D76: m2 | E76: 5.3264 | F76: 71.1 | G76: 378.70704 | H76: 0 | I76: 0 | J76: 0.001 | K76: 0.0053264 | L76: 0.255 | M76: 1.358232
A77: D | B77: 781 | C77: Dokončovací práce - obklady keramické | G77: =SUM(G78:G81) -> 13885.75881 | I77: =SUM(I78:I81) -> 0.351248448 | K77: =SUM(K78:K81) -> 0 | M77: =SUM(M78:M81) -> 15.67022
A78: M | B78: 597610350 | C78: obkládačky keramické do 22 ks/m2 | D78: m2 | E78: 22.187 | F78: 300 | G78: 6656.1 | H78: 0.013104 | I78: 0.290738448 | J78: 0 | L78: 0 | M78: 0
A79: K | B79: 781474114 | C79: Montáž obkladů vnitřních keramických hladkých do 22 ks/m2 lepených flexibilním lepidlem | D79: m2 | E79: 20.17 | F79: 298 | G79: 6010.66 | H79: 0.003 | I79: 0.06051 | J79: 0 | K79: 0 | L79: 0.686 | M79: 13.83662
A80: K | B80: 781494511 | C80: Plastové profily ukončovací lepené flexibilním lepidlem | D80: m | E80: 11.46 | F80: 92.7 | G80: 1062.342 | H80: 0 | I80: 0 | J80: 0 | K80: 0 | L80: 0.16 | M80: 1.8336
A81: K | B81: 998781101 | C81: Přesun hmot pro obklady keramické v objektech v do 6 m | D81: t | E81: 0.351248448 | F81: 446 | G81: 156.6568078 | I81: 0 | K81: 0
A82: D | B82: 784 | C82: Dokončovací práce - malby | G82: =SUM(G83:G83) -> 768.02565 | I82: =SUM(I83:I83) -> 0.00772856 | K82: =SUM(K83:K83) -> 0 | M82: =SUM(M83:M83) -> 0.1718064
A83: K | B83: 784453601 | C83: Malby směsi PRIMALEX tekuté hlinkové bílé dvojnásobné v místnostech v do 3,8 m | D83: m2 | E83: 48.3035 | F83: 15.9 | G83: 768.02565 | H83: 0.00016 | I83: 0.00772856 | J83: 0 | K83: 0 | L83: 0.041 | M83: 0.1718064
A84: D | B84: 21-M | C84: Elektromontáže | G84: 7000 | H84: 0 | I84: 0 | J84: 0 | L84: 0 | M84: 0
A85: K | B85: 2100X | C85: Elektro D+M | D85: soubor | E85: 1 | F85: 7000 | G85: 7000 | H85: 0 | I85: 0 | J85: 0 | K85: 0 | L85: 0

Sheet Rozpocet-rekapitulace
A1: Rekapitulace
C9: HSV | D9: =SUM(D10:D13) -> 35546.31977
B10: 3 | C10: Svislé a kompletní konstrukce | D10: ='Rozpočet final'!G10 -> 20497.373
B11: 6 | C11: Úpravy povrchů, podlahy a osazování výplní | D11: ='Rozpočet final'!G14 -> 10424.58028
B12: 9 | C12: Ostatní konstrukce a práce-bourání | D12: ='Rozpočet final'!G19 -> 3349.423337
B13: 99 | C13: Přesun hmot | D13: ='Rozpočet final'!G25 -> 1274.943149
C14: PSV | D14: =SUM(D15:D25) -> 74245.15781
B15: 711 | C15: Izolace proti vodě, vlhkosti a plynům | D15: ='Rozpočet final'!G29 -> 4539.287438
B16: 721 | C16: Zdravotechnika - vnitřní kanalizace | D16: ='Rozpočet final'!G33 -> 6000
B17: 722 | C17: Zdravotechnika - vnitřní vodovod | D17: ='Rozpočet final'!G35 -> 6000
B18: 725 | C18: Zdravotechnika - zařizovací předměty | D18: ='Rozpočet final'!G37 -> 17747.90147
B19: 735 | C19: Ústřední vytápění - otopná tělesa | D19: ='Rozpočet final'!G49 -> 4000
B20: 763 | C20: Konstrukce montované z desek, dílců a panelů | D20: ='Rozpočet final'!G52 -> 12803.54805
B21: 766 | C21: Konstrukce truhlářské | D21: ='Rozpočet final'!G62 -> 6306.55305
B22: 771 | C22: Podlahy z dlaždic | D22: ='Rozpočet final'!G70 -> 1815.376309
B23: 776 | C23: Podlahy povlakové | D23: ='Rozpočet final'!G75 -> 378.70704
B24: 781 | C24: Dokončovací práce - obklady keramické | D24: ='Rozpočet final'!G77 -> 13885.75881
B25: 784 | C25: Dokončovací práce - malby | D25: ='Rozpočet final'!G82 -> 768.02565
C26: MONTÁŽ | D26: =D27 -> 7000
B27: 21-M | C27: Elektromontáže | D27: ='Rozpočet final'!G84 -> 7000
C29: ZRN | D29: =D26+D9+D14 -> 116791.4776

Sheet Rozpočet (hidden)
A1: Pomocný rozpočet
A8: TV | B8: Kód položky | C8: Popis | D8: MJ | E8: Množství | F8: J. cena | G8: Celková cena | H8: Jednotková hmotnost | I8: Celková hmotnost | J8: Jednotková suť | K8: Suť celkem | L8: Nh | M8: Nh celkem
A10: DLAŽBA DO 25ks/m2
A11: D | B11: 771 | C11: Podlahy z dlaždic | G11: =SUM(G12:G14) -> 1793.126202 | H11: =SUM(H12:H14) -> 0.01692 | I11: =SUM(I12:I14) -> 0.0498881316 | J11: =SUM(J12:J14) -> 0 | L11: =SUM(L12:L14) -> 0.643 | M11: =SUM(M12:M14) -> 1.7565474
A12: K | B12: 771574116 | C12: Montáž podlah keramických režných hladkých lepených flexibilním lepidlem do 25 ks/m2 | D12: m2 | E12: 2.7318 | F12: 284 | G12: 775.8312 | H12: 0.0035 | I12: 0.0095613 | J12: 0 | L12: 0.613 | M12: 1.6745934
A13: M | B13: 597610690 | C13: dlaždice keramické do 25 ks/m2 | D13: m2 | E13: 3.00498 | F13: 330 | G13: 991.6434 | H13: 0.01342 | I13: 0.0403268316 | J13: 0 | L13: 0 | M13: 0
A14: K | B14: 771579191 | C14: Příplatek k montáž podlah keramických za plochu do 5 m2 | D14: m2 | E14: 2.7318 | F14: 9.39 | G14: 25.651602 | H14: 0 | I14: 0 | J14: 0 | L14: 0.03 | M14: 0.081954
A15: OBKLAD DO 22ks/m2
A16: D | B16: 781 | C16: Dokončovací práce - obklady keramické | G16: =SUM(G17:G19) -> 13729.102 | H16: =SUM(H17:H19) -> 0.016104 | I16: =SUM(I17:I19) -> 0.351248448 | J16: =SUM(J17:J19) -> 0 | L16: =SUM(L17:L19) -> 0.846 | M16: =SUM(M17:M19) -> 15.67022
A17: K | B17: 781474114 | C17: Montáž obkladů vnitřních keramických hladkých do 22 ks/m2 lepených flexibilním lepidlem | D17: m2 | E17: 20.17 | F17: 298 | G17: 6010.66 | H17: 0.003 | I17: 0.06051 | J17: 0 | L17: 0.686 | M17: 13.83662
A18: M | B18: 597610350 | C18: obkládačky keramické do 22 ks/m2 | D18: m2 | E18: 22.187 | F18: 300 | G18: 6656.1 | H18: 0.013104 | I18: 0.290738448 | J18: 0 | L18: 0 | M18: 0
A19: K | B19: 781494511 | C19: Plastové profily ukončovací lepené flexibilním lepidlem | D19: m | E19: 11.46 | F19: 92.7 | G19: 1062.342 | H19: 0 | I19: 0 | J19: 0 | L19: 0.16 | M19: 1.8336
A20: DVEŘE POUZDROVÉ 70 cm SDK
A21: D | B21: 763 | C21: Konstrukce montované z desek, dílců a panelů | G21: =SUM(G22:G23) -> 6858 | H21: =SUM(H22:H23) -> 0.037 | I21: =SUM(I22:I23) -> 0.037 | J21: =SUM(J22:J23) -> 0 | L21: =SUM(L22:L23) -> 2.752 | M21: =SUM(M22:M23) -> 2.752
A22: K | B22: 763183111 | C22: Montáž pouzdra posuvných dveří s jednou kapsou pro jedno křídlo šířky do 800 mm do SDK příčky | D22: kus | E22: 1 | F22: 888 | G22: 888 | H22: 0 | I22: 0 | J22: 0 | L22: 2.752 | M22: 2.752
A23: M | B23: 553316110 | C23: pouzdro stavební STANDARD S700-070 700 mm | D23: kus | E23: 1 | F23: 5970 | G23: 5970 | H23: 0.037 | I23: 0.037 | J23: 0 | L23: 0 | M23: 0
A24: D | B24: 766 | C24: Konstrukce truhlářské | G24: =SUM(G25:G29) -> 6203 | H24: =SUM(H25:H29) -> 0.03045 | I24: =SUM(I25:I29) -> 0.03045 | J24: =SUM(J25:J29) -> 0 | L24: =SUM(L25:L29) -> 4.73 | M24: =SUM(M25:M29) -> 4.73
A25: K | B25: 766X | C25: Dveřního kování D+M | D25: kus | E25: 1 | F25: 350 | G25: 350 | H25: 0 | I25: 0 | J25: 0 | L25: 0 | M25: 0
A26: K | B26: 766660171 | C26: Montáž dveřních křídel otvíravých 1křídlových š do 0,8 m do obložkové zárubně | D26: kus | E26: 1 | F26: 538 | G26: 538 | H26: 0 | I26: 0 | J26: 0 | L26: 1.805 | M26: 1.805
A27: M | B27: 611617170 | C27: dveře vnitřní 1křídlové 70x197 cm | D27: kus | E27: 1 | F27: 1500 | G27: 1500 | H27: 0.014 | I27: 0.014 | J27: 0 | L27: 0 | M27: 0
A28: K | B28: 766682111 | C28: Montáž zárubní obložkových pro dveře jednokřídlové tl stěny do 170 mm | D28: kus | E28: 1 | F28: 945 | G28: 945 | H28: 0.00045 | I28: 0.00045 | J28: 0 | L28: 2.925 | M28: 2.925
A29: M | B29: 611822580 | C29: zárubeň obložková pro dveře 1křídlové 60,70,80,90x197 cm, tl. 8 - 17 cm | D29: kus | E29: 1 | F29: 2870 | G29: 2870 | H29: 0.016 | I29: 0.016 | J29: 0 | L29: 0 | M29: 0
A30: VANA ROVNÁ PODEZDĚNÁ
A31: D | B31: 3 | C31: Svislé a kompletní konstrukce | G31: =SUM(G32:G32) -> 449.757 | H31: =SUM(H32:H32) -> 0.04963 | I31: =SUM(I32:I32) -> 0.048314805 | J31: =SUM(J32:J32) -> 0 | L31: =SUM(L32:L32) -> 0.805 | M31: =SUM(M32:M32) -> 0.7836675
A32: K | B32: 346244352 | C32: Obezdívka koupelnových van ploch rovných tl 50 mm z pórobetonových přesných příčkovek hladkých Ytong | D32: m2 | E32: 0.9735 | F32: 462 | G32: 449.757 | H32: 0.04963 | I32: 0.048314805 | J32: 0 | L32: 0.805 | M32: 0.7836675
A33: D | B33: 725 | C33: Zdravotechnika - zařizovací předměty | G33: =SUM(G34:G34) -> 4750 | H33: =SUM(H34:H34) -> 0.0191 | I33: =SUM(I34:I34) -> 0.0191 | J33: =SUM(J34:J34) -> 0 | L33: =SUM(L34:L34) -> 2.462 | M33: =SUM(M34:M34) -> 2.462
A34: K | B34: 725222116 | C34: Vana bez armatur výtokových akrylátová se zápachovou uzávěrkou D+M | D34: soubor | E34: 1 | F34: 4750 | G34: 4750 | H34: 0.0191 | I34: 0.0191 | J34: 0 | L34: 2.462 | M34: 2.462
A35: UMYVADLO
A36: D | B36: 725 | C36: Zdravotechnika - zařizovací předměty | G36: =SUM(G37:G37) -> 2300 | H36: =SUM(H37:H37) -> 0.01552 | I36: =SUM(I37:I37) -> 0.01552 | J36: =SUM(J37:J37) -> 0 | L36: =SUM(L37:L37) -> 1.1 | M36: =SUM(M37:M37) -> 1.1
A37: K | B37: 725211602 | C37: Umyvadlo keramické D+M | D37: soubor | E37: 1 | F37: 2300 | G37: 2300 | H37: 0.01552 | I37: 0.01552 | J37: 0 | L37: 1.1 | M37: 1.1
A38: WC GEBERIT
A39: D | B39: 725 | C39: Zdravotechnika - zařizovací předměty | G39: =SUM(G40:G40) -> 2500 | H39: =SUM(H40:H40) -> 0.0252 | I39: =SUM(I40:I40) -> 0.0252 | J39: =SUM(J40:J40) -> 0 | L39: =SUM(L40:L40) -> 2.5 | M39: =SUM(M40:M40) -> 2.5
A40: K | B40: 725112X | C40: Geberit D+M | D40: soubor | E40: 1 | F40: 2500 | G40: 2500 | H40: 0.0252 | I40: 0.0252 | J40: 0 | L40: 2.5 | M40: 2.5
A41: D | B41: 3 | C41: Svislé a kompletní konstrukce | G41: =SUM(G42:G42) -> 444.168 | H41: =SUM(H42:H42) -> 0.0415 | I41: =SUM(I42:I42) -> 0.046314 | J41: =SUM(J42:J42) -> 0 | L41: =SUM(L42:L42) -> 0 | M41: =SUM(M42:M42) -> 0
A42: K | B42: 346272111 | C42: Přizdívky tl 50 mm z pórobetonových přesných příčkovek Ytong objemové hmotnosti 500 kg/m3 | D42: m2 | E42: 1.116 | F42: 398 | G42: 444.168 | H42: 0.0415 | I42: 0.046314 | J42: 0
A43: SPRCHA SPRCHOVÝ BOX
A44: D | B44: 725 | C44: Zdravotechnika - zařizovací předměty | G44: =SUM(G45:G45) -> 1340 | H44: =SUM(H45:H45) -> 0.04117 | I44: =SUM(I45:I45) -> 0.04117 | J44: =SUM(J45:J45) -> 0 | L44: =SUM(L45:L45) -> 11.04 | M44: =SUM(M45:M45) -> 11.04
A45: K | B45: 725243111 | C45: Box sprchový masážní a parní D+M | D45: soubor | E45: 1 | F45: 1340 | G45: 1340 | H45: 0.04117 | I45: 0.04117 | J45: 0 | L45: 11.04 | M45: 11.04
A46: IZOLACE
A47: D | B47: 711 | C47: Izolace proti vodě, vlhkosti a plynům | G47: =SUM(G48:G49) -> 4480.011 | H47: =SUM(H48:H49) -> 0.00946 | I47: =SUM(I48:I49) -> 0.0677445 | J47: =SUM(J48:J49) -> 0 | L47: =SUM(L48:L49) -> 0.52 | M47: =SUM(M48:M49) -> 3.895116
A48: K | B48: 711493112 | C48: Izolace proti podpovrchové a tlakové vodě vodorovná SCHOMBURG těsnicí stěrkou AQUAFIN-1K | D48: m2 | E48: 3.8778 | F48: 295 | G48: 1143.951 | H48: 0.0045 | I48: 0.0174501 | J48: 0 | L48: 0.22 | M48: 0.853116
A49: K | B49: 711493122 | C49: Izolace proti podpovrchové a tlakové vodě svislá SCHOMBURG těsnicí stěrkou AQUAFIN-1K | D49: m2 | E49: 10.14 | F49: 329 | G49: 3336.06 | H49: 0.00496 | I49: 0.0502944 | J49: 0 | L49: 0.3 | M49: 3.042
A50: DEMONTÁŽ BJ
A51: D | B51: 763 | C51: Konstrukce montované z desek, dílců a panelů | G51: =SUM(G52:G55) -> 3368.9536 | H51: =SUM(H52:H55) -> 0 | I51: =SUM(I52:I55) -> 0 | J51: =SUM(J52:J55) -> 0.09065 | K51: 1.74085505 | L51: =SUM(L52:L55) -> 0.844 | M51: =SUM(M52:M55) -> 12.0826244
A52: K | B52: 763111811 | C52: Demontáž SDK příčky s jednoduchou ocelovou nosnou konstrukcí opláštění jednoduché | D52: m2 | E52: 45.655 | F52: 55.2 | G52: 2520.156 | H52: 0 | I52: 0 | J52: 0.03175 | K52: 1.44954625 | L52: 0.198 | M52: 9.03969
A53: K | B53: 763131831 | C53: Demontáž SDK podhledu s jednovrstvou nosnou kcí z ocelových profilů opláštění jednoduché | D53: m2 | E53: 5.3264 | F53: 61.6 | G53: 328.10624 | H53: 0 | I53: 0 | J53: 0.01725 | K53: 0.0918804 | L53: 0.221 | M53: 1.1771344
A54: K | B54: 763151811 | C54: Demontáž jedné vrstvy desek SDK podlaha | D54: m2 | E54: 5.3264 | F54: 34.9 | G54: 185.89136 | H54: 0 | I54: 0 | J54: 0.02475 | K54: 0.1318284 | L54: 0.125 | M54: 0.6658
A55: K | B55: 763181811 | C55: Demontáž jednokřídlové kovové zárubně v do 2,75 m SDK příčka | D55: kus | E55: 4 | F55: 83.7 | G55: 334.8 | H55: 0 | I55: 0 | J55: 0.0169 | K55: 0.0676 | L55: 0.3 | M55: 1.2
A56: D | B56: 766 | C56: Konstrukce truhlářské | G56: =SUM(G57:G57) -> 84.4 | H56: =SUM(H57:H57) -> 0 | I56: =SUM(I57:I57) -> 0 | J56: =SUM(J57:J57) -> 0.024 | K56: 0.096 | L56: =SUM(L57:L57) -> 0.05 | M56: =SUM(M57:M57) -> 0.2
A57: K | B57: 766691914 | C57: Vyvěšení nebo zavěšení dřevěných křídel dveří pl do 2 m2 | D57: kus | E57: 4 | F57: 21.1 | G57: 84.4 | H57: 0 | I57: 0 | J57: 0.024 | K57: 0.096 | L57: 0.05 | M57: 0.2
A58: D | B58: 776 | C58: Podlahy povlakové | G58: =SUM(G59:G59) -> 378.70704 | H58: =SUM(H59:H59) -> 0 | I58: =SUM(I59:I59) -> 0 | J58: =SUM(J59:J59) -> 0.001 | K58: 0.0053264 | L58: =SUM(L59:L59) -> 0.255 | M58: =SUM(M59:M59) -> 1.358232
A59: K | B59: 776511820 | C59: Demontáž povlakových podlah lepených s podložkou | D59: m2 | E59: 5.3264 | F59: 71.1 | G59: 378.70704 | H59: 0 | I59: 0 | J59: 0.001 | K59: 0.0053264 | L59: 0.255 | M59: 1.358232
A60: DEMONTÁŽ VANA
A61: D | B61: 725 | C61: Zdravotechnika - zařizovací předměty | G61: =SUM(G62:G63) -> 174 | H61: =SUM(H62:H63) -> 0 | I61: =SUM(I62:I63) -> 0 | J61: =SUM(J62:J63) -> 0.0096092 | K61: 0.0087492 | L61: =SUM(L62:L63) -> 0.259076 | M61: =SUM(M62:M63) -> 0.259076
A62: K | B62: 725220832 | C62: Demontáž van litinová volná | D62: soubor | E62: 1 | F62: 112 | G62: 112 | H62: 0 | I62: 0 | J62: 0.0087492 | K62: 0.0087492 | L62: 0.037076 | M62: 0.037076
A63: K | B63: 725820802 | C63: Demontáž baterie stojánkové | D63: soubor | E63: 1 | F63: 62 | G63: 62 | H63: 0 | I63: 0 | J63: 0.00086 | K63: 0.00086 | L63: 0.222 | M63: 0.222
A64: ELEKTRO
A65: D | B65: 21-M | C65: Elektromontáže | G65: =SUM(G66:G66) -> 7000 | H65: =SUM(H66:H66) -> 0 | I65: =SUM(I66:I66) -> 0 | J65: =SUM(J66:J66) -> 0 | L65: =SUM(L66:L66) -> 0 | M65: =SUM(M66:M66) -> 0
A66: K | B66: 2100X | C66: Elektro D+M | D66: soubor | E66: 1 | F66: 7000 | G66: 7000 | H66: 0 | I66: 0 | J66: 0 | L66: 0
A67: KANALIZACE
A68: D | B68: 721 | C68: Zdravotechnika - vnitřní kanalizace | G68: =SUM(G69:G69) -> 6000 | H68: =SUM(H69:H69) -> 0 | I68: =SUM(I69:I69) -> 0 | J68: =SUM(J69:J69) -> 0 | L68: =SUM(L69:L69) -> 0 | M68: =SUM(M69:M69) -> 
A69: K | B69: 721X | C69: Potrubí kanalizační plastové D+M | D69: soubor | E69: 1 | F69: 6000 | G69: 6000 | H69: 0 | I69: 0 | J69: 0 | K69: 0 | L69: 0
A70: VODOVOD
A71: D | B71: 722 | C71: Zdravotechnika - vnitřní vodovod | G71: =SUM(G72:G72) -> 6000 | H71: =SUM(H72:H72) -> 0 | I71: =SUM(I72:I72) -> 0 | J71: =SUM(J72:J72) -> 0 | L71: =SUM(L72:L72) -> 0 | M71: =SUM(M72:M72) -> 
A72: K | B72: 722X | C72: Potrubí vodovodní plastové D+M | D72: soubor | E72: 1 | F72: 6000 | G72: 6000 | H72: 0 | I72: 0 | J72: 0 | K72: 0 | L72: 0
A73: MATERIÁL YTONG
A74: D | B74: 3 | C74: Svislé a kompletní konstrukce | G74: =SUM(G75:G75) -> 19603.448 | H74: =SUM(H75:H75) -> 0.088 | I74: =SUM(I75:I75) -> 2.8280384 | J74: =SUM(J75:J75) -> 0 | L74: =SUM(L75:L75) -> 0.515 | M74: =SUM(M75:M75) -> 16.550452
A75: K | B75: 342272423 | C75: Příčky tl 125 mm z pórobetonových přesných příčkovek objemové hmotnosti 500 kg/m3 | D75: m2 | E75: 32.1368 | F75: 610 | G75: 19603.448 | H75: 0.088 | I75: 2.8280384 | J75: 0 | L75: 0.515 | M75: 16.550452
A76: D | B76: 6 | C76: Úpravy povrchů, podlahy a osazování výplní | G76: =SUM(G77:G80) -> 466.6 | H76: =SUM(H77:H80) -> 0.0165045 | I76: =SUM(I77:I80) -> 0.3983022904 | J76: =SUM(J77:J80) -> 0 | L76: =SUM(L77:L80) -> 0.966 | M76: =SUM(M77:M80) -> 23.8758728
A77: K | B77: 612474115 | C77: Vnitřní omítka pórobetonových stěn tl 8 mm ze suché směsi Ytong | D77: m2 | E77: 32.1368 | F77: 180 | G77: 180 | H77: 0.0096 | I77: 0.30851328 | J77: 0 | L77: 0.408 | M77: 13.1118144
A78: K | B78: 612481113 | C78: Potažení vnitřních stěn sklovláknitým pletivem vypnutým včetně přibití strun | D78: m2 | E78: 32.1368 | F78: 104 | G78: 104 | H78: 0.00086 | I78: 0.027637648 | J78: 0 | L78: 0.23 | M78: 7.391464
A79: K | B79: 611471620 | C79: Vyspravení vnitřních prefabrikovaných stěn stěrkovou hmotou do 20 % plochy | D79: m2 | E79: 10.2823 | F79: 45.2 | G79: 161 | H79: 0.00154 | I79: 0.015834742 | J79: 0 | L79: 0.078 | M79: 0.8020194
A80: K | B80: 612471411 | C80: Tenkovrstvá úprava vnitřních stěn tl do 3 mm aktivovaným štukem | D80: m2 | E80: 10.2823 | F80: 81.01 | G80: 21.6 | H80: 0.0045045 | I80: 0.04631662035 | J80: 0 | L80: 0.25 | M80: 2.570575
A81: D | B81: 784 | C81: Dokončovací práce - malby | G81: =SUM(G82:G82) -> 15.9 | H81: =SUM(H82:H82) -> 0.00016 | I81: =SUM(I82:I82) -> 0.007058096 | J81: =SUM(J82:J82) -> 0 | L81: =SUM(L82:L82) -> 0.041 | M81: =SUM(M82:M82) -> 1.8086371
A82: K | B82: 784453601 | C82: Malby směsi PRIMALEX tekuté hlinkové bílé dvojnásobné v místnostech v do 3,8 m | D82: m2 | E82: 44.1131 | F82: 15.9 | G82: 15.9 | H82: 0.00016 | I82: 0.007058096 | J82: 0 | L82: 0.041 | M82: 1.8086371
A83: PŘEKLAD YTONG
A84: D | B84: 3 | C84: Svislé a kompletní konstrukce | G84: =SUM(G85:G85) -> 0 | H84: =SUM(H85:H85) -> 0.03304 | I84: =SUM(I85:I85) -> 0 | J84: =SUM(J85:J85) -> 0 | L84: =SUM(L85:L85) -> 0.232 | M84: =SUM(M85:M85) -> 0
A85: K | B85: 317142321 | C85: Překlady nenosné přímé z pórobetonu Ytong v příčkách tl 125 mm pro světlost otvoru do 1010 mm | D85: kus | E85: 0 | F85: 414 | G85: 0 | H85: 0.03304 | I85: 0 | J85: 0 | L85: 0.232 | M85: 0
A86: SDK PODHLED ANO
A87: D | B87: 763 | C87: Konstrukce montované z desek, dílců a panelů | G87: =SUM(G88:G89) -> 2504.60208 | H87: =SUM(H88:H89) -> 0.01314 | I87: =SUM(I88:I89) -> 0.055061856 | J87: =SUM(J88:J89) -> 0 | L87: =SUM(L88:L89) -> 1.008 | M87: =SUM(M88:M89) -> 4.2239232
A88: K | B88: 763131451 | C88: SDK podhled deska 1xH2 12,5 bez TI dvouvrstvá spodní kce profil CD+UD | D88: m2 | E88: 4.1904 | F88: 574 | G88: 2405.2896 | H88: 0.01314 | I88: 0.055061856 | J88: 0 | L88: 0.968 | M88: 4.0563072
A89: K | B89: 763131714 | C89: SDK podhled základní penetrační nátěr | D89: m2 | E89: 4.1904 | F89: 23.7 | G89: 99.31248 | H89: 0 | I89: 0 | J89: 0 | L89: 0.04 | M89: 0.167616
A90: D | B90: 784 | C90: Dokončovací práce - malby | G90: =SUM(G91:G91) -> 66.62736 | H90: =SUM(H91:H91) -> 0.00016 | I90: =SUM(I91:I91) -> 0.000670464 | J90: =SUM(J91:J91) -> 0 | L90: =SUM(L91:L91) -> 0.041 | M90: =SUM(M91:M91) -> 0.1718064
A91: K | B91: 784453601 | C91: Malby směsi PRIMALEX tekuté hlinkové bílé dvojnásobné v místnostech v do 3,8 m | D91: m2 | E91: 4.1904 | F91: 15.9 | G91: 66.62736 | H91: 0.00016 | I91: 0.000670464 | J91: 0 | L91: 0.041 | M91: 0.1718064
A92: PODLAHOVÉ TOPENÍ
A93: D | B93: 735 | C93: Ústřední vytápění - otopná tělesa | G93: =SUM(G94:G94) -> 1400 | H93: =SUM(H94:H94) -> 0 | I93: =SUM(I94:I94) -> 0 | J93: =SUM(J94:J94) -> 0 | L93: =SUM(L94:L94) -> 0 | M93: =SUM(M94:M94) -> 0
A94: K | B94: 735X | C94: Podlahové vytápění - topné rohože D+M | D94: m2 | E94: 1 | F94: 1400 | G94: 1400 | H94: 0 | I94: 0 | J94: 0 | L94: 0 | M94: 0
A95: OTOPNÝ ŽEBŘÍK
A96: D | B96: 735 | C96: Ústřední vytápění - otopná tělesa | G96: =SUM(G97:G97) -> 2600 | H96: =SUM(H97:H97) -> 0.013 | I96: =SUM(I97:I97) -> 0.013 | J96: =SUM(J97:J97) -> 0 | L96: =SUM(L97:L97) -> 0 | M96: =SUM(M97:M97) -> 
A97: K | B97: 735152112 | C97: Otopné těleso panelové D+M | D97: kus | E97: 1 | F97: 2600 | G97: 2600 | H97: 0.013 | I97: 0.013 | J97: 0 | L97: 0
A98: BATERIE VANOVÁ PÁKOVÁ
A99: D | B99: 725 | C99: Zdravotechnika - zařizovací předměty | G99: =SUM(G100:G100) -> 2250 | H99: =SUM(H100:H100) -> 0.002 | I99: =SUM(I100:I100) -> 0.002 | J99: =SUM(J100:J100) -> 0 | L99: =SUM(L100:L100) -> 0 | M99: =SUM(M100:M100) -> 0
A100: K | B100: 725831315 | C100: Baterie vanová páková D+M | D100: soubor | E100: 1 | F100: 2250 | G100: 2250 | H100: 0.002 | I100: 0.002
A101: BATERIE SPRCHOVÁ ZÁPUSTNÁ S PEVNOU SPRCHOU
A102: D | B102: 725 | C102: Zdravotechnika - zařizovací předměty | G102: =SUM(G103:G103) -> 2250 | H102: =SUM(H103:H103) -> 0.002 | I102: =SUM(I103:I103) -> 4.5 | J102: =SUM(J103:J103) -> 0 | L102: =SUM(L103:L103) -> 0 | M102: =SUM(M103:M103) -> 0
A103: K | B103: 725841333 | C103: Baterie sprchová zápustná s přepínačem a pevnou sprchou D+M | D103: soubor | E103: 1 | F103: 2250 | G103: 2250 | H103: 0.002 | I103: 4.5
A104: BATERIE UMYVADLOVÁ TERMOSTATICKÁ
A105: D | B105: 725 | C105: Zdravotechnika - zařizovací předměty | G105: =SUM(G106:G106) -> 2115 | H105: =SUM(H106:H106) -> 0.002 | I105: =SUM(I106:I106) -> 0.002 | J105: =SUM(J106:J106) -> 0 | L105: =SUM(L106:L106) -> 0 | M105: =SUM(M106:M106) -> 0
A106: K | B106: 725822654 | C106: Baterie umyvadlová termostatická D+M | D106: soubor | E106: 1 | F106: 2115 | G106: 2115 | H106: 0.002 | I106: 0.002 | J106: 0 | K106: 0
A107: PŘESUN HMOT DEMONTÁŽ
A108: D | B108: 9 | C108: Ostatní konstrukce a práce-bourání | G108: 3819.00082 | H108: 0 | I108: 0 | J108: 0 | K108: 0 | L108: 0.159848
A109: K | B109: 979011111 | C109: Svislá doprava suti a vybouraných hmot za prvé podlaží | D109: t | E109: 1.75139457 | F109: 260 | G109: =SUM(G110:G116) -> 3363.638231 | H109: =SUM(H110:H116) -> 0 | I109: =SUM(I110:I116) -> 0 | J109: =SUM(J110:J116) -> 0 | L109: =SUM(L110:L116) -> 0.159848 | M109: =SUM(M110:M116) -> 
A110: K | B110: 979011121 | C110: Svislá doprava suti a vybouraných hmot ZKD podlaží | D110: t | E110: 1.75139457 | F110: 112 | G110: 196.1561918 | H110: 0 | I110: 0 | J110: 0 | L110: 0
A111: K | B111: 979081111 | C111: Odvoz suti a vybouraných hmot na skládku do 1 km | D111: t | E111: 1.75139457 | F111: 365 | G111: 639.2590181 | H111: 0 | I111: 0 | J111: 0 | L111: 0.05096 | M111: 0.08925106729
A112: K | B112: 979081121 | C112: Odvoz suti a vybouraných hmot na skládku ZKD 1 km přes 1 km | D112: t | E112: 1.75139457 | F112: 13.8 | G112: 24.16924507 | H112: 0 | I112: 0 | J112: 0 | L112: 0 | M112: 0
A113: K | B113: 979082111 | C113: Vnitrostaveništní vodorovná doprava suti a vybouraných hmot do 10 m | D113: t | E113: 1.74085505 | F113: 217 | G113: 377.7655458 | H113: 0 | I113: 0 | J113: 0 | L113: 0.097968 | M113: 0.1705480875
A114: K | B114: 979082121 | C114: Vnitrostaveništní vodorovná doprava suti a vybouraných hmot ZKD 5 m přes 10 m | D114: t | E114: 1.74085505 | F114: 24.2 | G114: 42.12869221 | H114: 0 | I114: 0 | J114: 0 | L114: 0.01092 | M114: 0.01901013715
A115: K | B115: 979098231 | C115: Poplatek za uložení stavebního směsného odpadu na skládce (skládkovné) | D115: t | E115: 1.75139457 | F115: 1190 | G115: 2084.159538 | H115: 0 | I115: 0 | J115: 0 | L115: 0 | M115: 0
A116: PŘESUN HMOT HSV
A117: D | B117: 99 | C117: Přesun hmot | E117: =SUM(E118:E118) -> 8.201529075 | F117: 180 | G117: 1476.275234 | H117: 0 | I117: 0 | J117: 0 | L117: =SUM(L118:L118) -> 0 | M117: =SUM(M118:M118) -> 0
A118: K | B118: 998011031 | C118: Přesun hmot pro budovy z bloků výšky do 6 m | D118: t | E118: 8.201529075 | F118: 180 | G118: 1476.275234 | H118: 0 | I118: 0 | J118: 0 | L118: 0 | M118: 0
A119: PŘESUN HMOT PSV 771 PODLAHY Z DLAŽDIC
A120: D | B120: 771 | C120: Podlahy z dlaždic | E120: =SUM(E121:E121) -> 0.6348648564 | F120: =SUM(F121:F121) -> 446 | G120: =SUM(G121:G121) -> 283.149726
A121: K | B121: 998771101 | C121: Přesun hmot pro podlahy z dlaždic v objektech v do 6 m | D121: t | E121: 0.6348648564 | F121: 446 | G121: 283.149726
A122: PŘESUN HMOT PSV 781 OBKLADY KERAMICKÉ
A123: D | B123: 781 | C123: Dokončovací práce - obklady keramické | E123: =SUM(E124:E124) -> 4.097929218 | F123: =SUM(F124:F124) -> 446 | G123: =SUM(G124:G124) -> 1827.676431
A124: K | B124: 998781101 | C124: Přesun hmot pro obklady keramické v objektech v do 6 m | D124: t | E124: 4.097929218 | F124: 446 | G124: 1827.676431
A125: PŘESUN HMOT PSV 763 KONSTRUKCE MONTOVANÉ Z DESEK
A126: D | B126: 763 | C126: Konstrukce montované z desek, dílců a panelů | E126: =SUM(E127:E127) -> 4.964348272 | F126: =SUM(F127:F127) -> 782 | G126: =SUM(G127:G127) -> 3882.120349
A127: K | B127: 998763301 | C127: Přesun hmot pro sádrokartonové konstrukce v objektech v do 6 m | D127: t | E127: 4.964348272 | F127: 782 | G127: 3882.120349
A128: PŘESUN HMOT PSV 766 KONSTRUKCE TRUHLÁŘSKÉ
A129: D | B129: 766 | C129: Konstrukce truhlářské | E129: =SUM(E130:E130) -> 19.5599 | F129: =SUM(F130:F130) -> 629 | G129: =SUM(G130:G130) -> 12303.1771
A130: K | B130: 998766101 | C130: Přesun hmot pro konstrukce truhlářské v objektech v do 6 m | D130: t | E130: 19.5599 | F130: 629 | G130: 12303.1771
A131: PŘESUN HMOT DEMONTÁŽ ZDRAVOTECHNIKA
A132: D | B132: 725 | C132: Zdravotechnika - zařizovací předměty | E132: =SUM(E133:E133) -> 0.01053952 | F132: =SUM(F133:F133) -> 1080 | G132: =SUM(G133:G133) -> 11.3826816 | H132: 0 | I132: 0 | J132: 0 | L132: 0.291548 | M132: 0.003072775977
A133: K | B133: 725590811 | C133: Přemístění vnitrostaveništní demontovaných pro zařizovací předměty v objektech výšky do 6 m | D133: t | E133: 0.01053952 | F133: 1080 | G133: 11.3826816 | H133: 0 | I133: 0 | J133: 0 | L133: 0.291548 | M133: 0.003072775977
A134: PŘESUN HMOT PSV 725 ZDRAVOTECHNIKA
A135: D | B135: 725 | C135: Zdravotechnika - zařizovací předměty | E135: =SUM(E136:E136) -> 0.29832 | F135: =SUM(F136:F136) -> 547 | G135: =SUM(G136:G136) -> 163.18104
A136: K | B136: 998725101 | C136: Přesun hmot pro zařizovací předměty v objektech v do 6 m | D136: t | E136: 0.29832 | F136: 547 | G136: 163.18104
A137: PŘESUN HMOT PSV 711 IZOLACE PROTI VODĚ
A138: D | B138: 711 | C138: Izolace proti vodě, vlhkosti a plynům | E138: =SUM(E139:E139) -> 0.0677445 | F138: =SUM(F139:F139) -> 875 | G138: =SUM(G139:G139) -> 59.2764375 | H138: 0 | I138: 0 | J138: 0 | L138: 0.014103 | M138: 0.0009554006835
A139: K | B139: 998711101 | C139: Přesun hmot pro izolace proti vodě, vlhkosti a plynům v objektech výšky do 6 m | D139: t | E139: 0.0677445 | F139: 875 | G139: 59.2764375 | H139: 0 | I139: 0 | J139: 0 | L139: 0.014103 | M139: 0.0009554006835
A140: OSTATNÍ
A141: D | B141: 99 | C141: Přesun hmot | E141: =SUM(E142:E143) -> 8.3808 | F141: =SUM(F142:F143) -> 161.6 | G141: =SUM(G142:G143) -> 677.16864
A142: K | B142: 949121111 | C142: Lešení lehké pomocné kozové dílcové o výšce lešeňové podlahy do 1,2 m | D142: m2 | E142: 4.1904 | F142: 89.7 | G142: 375.87888 | H142: 0 | I142: 0 | J142: 0 | L142: 0.134 | M142: 0.5615136
A143: K | B143: 952901111 | C143: Vyčištění budov bytové a občanské výstavby při výšce podlaží do 4 m | D143: m2 | E143: 4.1904 | F143: 71.9 | G143: 301.28976 | H143: 0 | I143: 4e-05 | J143: 0 | L143: 0.308 | M143: 1.2906432

Sheet balíčky (hidden)
A2: TV | B2: Kód položky | C2: Popis | D2: MJ | E2: Množství | F2: J. cena | G2: Celková cena | H2: Jednotková hmotnost | I2: Celková hmotnost | J2: Jednotková suť | K2: Suť celkem | L2: Nh | M2: Nh celkem
A3: MATERIÁL POROTHERM
A4: ='kros seznam'!B3 -> D | B4: ='kros seznam'!C3 -> 3 | C4: ='kros seznam'!D3 -> Svislé a kompletní konstrukce | G4: =SUM(G5) -> 17353.872 | H4: 0.127 | I4: 4.0813736 | J4: 0 | L4: 0.616 | M4: 19.7962688
A5: ='kros seznam'!B10 -> K | B5: ='kros seznam'!C10 -> 342248112 | C5: ='kros seznam'!D10 -> Příčky POROTHERM tl 115 mm pevnosti P 10 na MVC | D5: ='kros seznam'!E10 -> m2 | E5: ='Navrhovaný stav - pomocný'!E9 -> 32.1368 | F5: ='kros seznam'!G10 -> 540 | G5: =E5*F5 -> 17353.872 | H5: 0.127 | I5: =E5*H5 -> 4.0813736 | J5: ='kros seznam'!K10 -> 0 | L5: ='kros seznam'!L10 -> 0.616 | M5: =E5*L5 -> 19.7962688
A6: ='kros seznam'!B16 -> D | B6: ='kros seznam'!C16 -> 6 | C6: ='kros seznam'!D16 -> Úpravy povrchů, podlahy a osazování výplní | G6: =SUM(G7) -> 334 | H6: 0.01697 | I6: 0.545361496 | J6: 0 | L6: 0.513 | M6: 16.4861784
A7: ='kros seznam'!B23 -> K | B7: ='kros seznam'!C23 -> 612478111 | C7: ='kros seznam'!D23 -> Vnitřní omítka stěn tl 10 mm ze suché směsi POROTHERM UNIVERSAL | D7: ='kros seznam'!E23 -> m2 | E7: ='Navrhovaný stav - pomocný'!E9 -> 32.1368 | F7: ='kros seznam'!G23 -> 334 | G7: ='kros seznam'!I23 -> 334 | H7: ='kros seznam'!J23 -> 0.01697 | I7: =H7*E7 -> 0.545361496 | J7: ='kros seznam'!K23 -> 0 | L7: ='kros seznam'!L23 -> 0.513 | M7: =L7*E7 -> 16.4861784
A8: ='kros seznam'!B18 -> K | B8: ='kros seznam'!C18 -> 611471620 | C8: ='kros seznam'!D18 -> Vyspravení vnitřních prefabrikovaných stěn stěrkovou hmotou do 20 % plochy | D8: ='kros seznam'!E18 -> m2 | E8: ='Navrhovaný stav - pomocný'!E8 -> 10.2823 | F8: ='kros seznam'!G18 -> 45.2 | G8: ='kros seznam'!I24 -> 104 | H8: ='kros seznam'!J18 -> 0.00154 | I8: =H8*E8 -> 0.015834742 | J8: ='kros seznam'!K18 -> 0 | L8: ='kros seznam'!L18 -> 0.078 | M8: =L8*E8 -> 0.8020194
A9: ='kros seznam'!B20 -> K | B9: ='kros seznam'!C20 -> 612471411 | C9: ='kros seznam'!D20 -> Tenkovrstvá úprava vnitřních stěn tl do 3 mm aktivovaným štukem | D9: ='kros seznam'!E20 -> m2 | E9: ='Navrhovaný stav - pomocný'!E8 -> 10.2823 | F9: ='kros seznam'!G20 -> 81.01 | G9: ='kros seznam'!I25 -> 161 | H9: ='kros seznam'!J20 -> 0.0045045 | I9: =H9*E9 -> 0.04631662035 | J9: ='kros seznam'!K20 -> 0 | L9: ='kros seznam'!L20 -> 0.25 | M9: =L9*E9 -> 2.570575
A10: ='kros seznam'!B269 -> D | B10: ='kros seznam'!C269 -> 784 | C10: ='kros seznam'!D269 -> Dokončovací práce - malby | G10: =SUM(G11) -> 15.9 | H10: =SUM(H11) -> 0.00016 | I10: 0.012483456 | J10: 0 | L10: 0.041 | M10: 3.1988856
A11: ='kros seznam'!B270 -> K | B11: ='kros seznam'!C270 -> 784453601 | C11: ='kros seznam'!D270 -> Malby směsi PRIMALEX tekuté hlinkové bílé dvojnásobné v místnostech v do 3,8 m | D11: ='kros seznam'!E270 -> m2 | E11: ='Navrhovaný stav - pomocný'!E13+'Navrhovaný stav - pomocný'!E14+'Navrhovaný stav - pomocný'!E13+'Navrhovaný stav - pomocný'!E14 -> 78.0216 | F11: ='kros seznam'!G270 -> 15.9 | G11: ='kros seznam'!I270 -> 15.9 | H11: ='kros seznam'!J270 -> 0.00016 | I11: =H11*E11 -> 0.012483456 | J11: ='kros seznam'!K270 -> 0 | L11: ='kros seznam'!L270 -> 0.041 | M11: =L11*E11 -> 3.1988856
A13: MATERIÁL YTONG
A14: ='kros seznam'!B3 -> D | B14: ='kros seznam'!C3 -> 3 | C14: ='kros seznam'!D3 -> Svislé a kompletní konstrukce | G14: =SUM(G15) -> 19603.448 | H14: 0.088 | I14: 2.8280384 | J14: 0 | L14: 0.515 | M14: 16.550452
A15: ='kros seznam'!B12 -> K | B15: ='kros seznam'!C12 -> 342272423 | C15: ='kros seznam'!D12 -> Příčky tl 125 mm z pórobetonových přesných příčkovek objemové hmotnosti 500 kg/m3 | D15: ='kros seznam'!E12 -> m2 | E15: ='Navrhovaný stav - pomocný'!E9 -> 32.1368 | F15: ='kros seznam'!G12 -> 610 | G15: =E15*F15 -> 19603.448 | H15: 0.088 | I15: =H15*E15 -> 2.8280384 | J15: ='kros seznam'!K12 -> 0 | L15: 0.515 | M15: =L15*E15 -> 16.550452
A16: ='kros seznam'!B16 -> D | B16: ='kros seznam'!C16 -> 6 | C16: ='kros seznam'!D16 -> Úpravy povrchů, podlahy a osazování výplní | G16: =SUM(G17:G18) -> 284 | H16: 0.01046 | I16: 0.336150928 | J16: 0 | L16: 0.638 | M16: 20.5032784
A17: ='kros seznam'!B22 -> K | B17: ='kros seznam'!C22 -> 612474115 | C17: ='kros seznam'!D22 -> Vnitřní omítka pórobetonových stěn tl 8 mm ze suché směsi Ytong | D17: ='kros seznam'!E22 -> m2 | E17: ='Navrhovaný stav - pomocný'!E9 -> 32.1368 | F17: ='kros seznam'!G22 -> 180 | G17: ='kros seznam'!I22 -> 180 | H17: ='kros seznam'!J22 -> 0.0096 | I17: =H17*E17 -> 0.30851328 | J17: ='kros seznam'!K22 -> 0 | L17: ='kros seznam'!L22 -> 0.408 | M17: =L17*E17 -> 13.1118144
A18: ='kros seznam'!B24 -> K | B18: ='kros seznam'!C24 -> 612481113 | C18: ='kros seznam'!D24 -> Potažení vnitřních stěn sklovláknitým pletivem vypnutým včetně přibití strun | D18: ='kros seznam'!E24 -> m2 | E18: ='Navrhovaný stav - pomocný'!E9 -> 32.1368 | F18: ='kros seznam'!G24 -> 104 | G18: ='kros seznam'!I24 -> 104 | H18: ='kros seznam'!J24 -> 0.00086 | I18: =E18*H18 -> 0.027637648 | J18: ='kros seznam'!K24 -> 0 | L18: ='kros seznam'!L24 -> 0.23 | M18: =L18*E18 -> 7.391464
A19: ='kros seznam'!B18 -> K | B19: ='kros seznam'!C18 -> 611471620 | C19: ='kros seznam'!D18 -> Vyspravení vnitřních prefabrikovaných stěn stěrkovou hmotou do 20 % plochy | D19: ='kros seznam'!E18 -> m2 | E19: ='Navrhovaný stav - pomocný'!E8 -> 10.2823 | F19: ='kros seznam'!G18 -> 45.2 | G19: ='kros seznam'!I25 -> 161 | H19: ='kros seznam'!J18 -> 0.00154 | I19: =E19*H19 -> 0.015834742 | J19: ='kros seznam'!K18 -> 0 | L19: ='kros seznam'!L18 -> 0.078 | M19: =L19*E19 -> 0.8020194
A20: ='kros seznam'!B20 -> K | B20: ='kros seznam'!C20 -> 612471411 | C20: ='kros seznam'!D20 -> Tenkovrstvá úprava vnitřních stěn tl do 3 mm aktivovaným štukem | D20: ='kros seznam'!E20 -> m2 | E20: ='Navrhovaný stav - pomocný'!E8 -> 10.2823 | F20: ='kros seznam'!G20 -> 81.01 | G20: ='kros seznam'!I26 -> 21.6 | H20: ='kros seznam'!J20 -> 0.0045045 | I20: =E20*H20 -> 0.04631662035 | J20: ='kros seznam'!K20 -> 0 | L20: ='kros seznam'!L20 -> 0.25 | M20: =L20*E20 -> 2.570575
A21: ='kros seznam'!B269 -> D | B21: 784 | C21: ='kros seznam'!D269 -> Dokončovací práce - malby | G21: =SUM(G22) -> 15.9 | H21: 0.00016 | I21: 0.007058096 | J21: 0 | L21: 0.041 | M21: 1.8086371
A22: ='kros seznam'!B270 -> K | B22: ='kros seznam'!C270 -> 784453601 | C22: ='kros seznam'!D270 -> Malby směsi PRIMALEX tekuté hlinkové bílé dvojnásobné v místnostech v do 3,8 m | D22: ='kros seznam'!E270 -> m2 | E22: ='Navrhovaný stav - pomocný'!E13+'Navrhovaný stav - pomocný'!E14+'Navrhovaný stav - pomocný'!E11 -> 44.1131 | F22: ='kros seznam'!G270 -> 15.9 | G22: ='kros seznam'!I270 -> 15.9 | H22: ='kros seznam'!J270 -> 0.00016 | I22: =E22*H22 -> 0.007058096 | J22: ='kros seznam'!K270 -> 0 | L22: ='kros seznam'!L270 -> 0.041 | M22: =L22*E22 -> 1.8086371
A24: MATERIÁL SÁDROKARTON
A25: ='kros seznam'!B132 -> D | B25: ='kros seznam'!C132 -> 763 | C25: ='kros seznam'!D132 -> Konstrukce montované z desek, dílců a panelů | G25: =SUM(G26:G27) -> 39230.70744 | H25: 0.04762 | I25: 1.530354416 | J25: 0 | L25: 1.36 | M25: 44.145984
A26: ='kros seznam'!B139 -> K | B26: ='kros seznam'!C139 -> 763111434 | C26: ='kros seznam'!D139 -> SDK příčka tl 125 mm profil CW+UW 75 desky 2xH2 12,5 TI 75 mm EI 60 Rw 53 dB | D26: ='kros seznam'!E139 -> m2 | E26: ='Navrhovaný stav - pomocný'!E9 -> 32.1368 | F26: ='kros seznam'!G139 -> 1170 | G26: =E26*F26 -> 37600.056 | H26: ='kros seznam'!J139 -> 0.04762 | I26: =E26*H26 -> 1.530354416 | J26: ='kros seznam'!K139 -> 0 | L26: ='kros seznam'!L139 -> 1.296 | M26: =E26*L26 -> 41.6492928
A27: ='kros seznam'!B134 -> K | B27: ='kros seznam'!C134 -> 763111717 | C27: ='kros seznam'!D134 -> SDK příčka základní penetrační nátěr | D27: ='kros seznam'!E134 -> m2 | E27: ='Navrhovaný stav - pomocný'!E13+'Navrhovaný stav - pomocný'!E14 -> 39.0108 | F27: ='kros seznam'!G134 -> 41.8 | G27: =E27*F27 -> 1630.65144 | H27: 0 | I27: =E27*H27 -> 0 | J27: 0 | L27: 0.064 | M27: =E27*L27 -> 2.4966912
A28: ='kros seznam'!B16 -> D | B28: ='kros seznam'!C16 -> 6 | C28: ='kros seznam'!D16 -> Úpravy povrchů, podlahy a osazování výplní | G28: =SUM(G29:G30) -> 1297.729083 | H28: =SUM(H29:H30) -> 0.0060445 | I28: 0.06215136235 | J28: 0 | L28: 0.328 | M28: 3.3725944
A29: ='kros seznam'!B18 -> K | B29: ='kros seznam'!C18 -> 611471620 | C29: ='kros seznam'!D18 -> Vyspravení vnitřních prefabrikovaných stěn stěrkovou hmotou do 20 % plochy | D29: ='kros seznam'!E18 -> m2 | E29: ='Navrhovaný stav - pomocný'!E8 -> 10.2823 | F29: ='kros seznam'!G18 -> 45.2 | G29: =E29*F29 -> 464.75996 | H29: ='kros seznam'!J18 -> 0.00154 | I29: =E29*H29 -> 0.015834742 | J29: ='kros seznam'!K18 -> 0 | L29: ='kros seznam'!L18 -> 0.078 | M29: =E29*L29 -> 0.8020194
A30: ='kros seznam'!B20 -> K | B30: ='kros seznam'!C20 -> 612471411 | C30: ='kros seznam'!D20 -> Tenkovrstvá úprava vnitřních stěn tl do 3 mm aktivovaným štukem | D30: ='kros seznam'!E20 -> m2 | E30: ='Navrhovaný stav - pomocný'!E8 -> 10.2823 | F30: ='kros seznam'!G20 -> 81.01 | G30: =E30*F30 -> 832.969123 | H30: ='kros seznam'!J20 -> 0.0045045 | I30: =E30*H30 -> 0.04631662035 | J30: ='kros seznam'!K20 -> 0 | L30: ='kros seznam'!L20 -> 0.25 | M30: =E30*L30 -> 2.570575
A31: ='kros seznam'!B269 -> D | B31: ='kros seznam'!C269 -> 784 | C31: ='kros seznam'!D269 -> Dokončovací práce - malby | G31: =SUM(G32) -> 701.39829 | H31: 0.00016 | I31: 0.007058096 | J31: 0 | L31: 0.041 | M31: 1.8086371
A32: ='kros seznam'!B270 -> K | B32: ='kros seznam'!C270 -> 784453601 | C32: ='kros seznam'!D270 -> Malby směsi PRIMALEX tekuté hlinkové bílé dvojnásobné v místnostech v do 3,8 m | D32: ='kros seznam'!E270 -> m2 | E32: ='Navrhovaný stav - pomocný'!E13+'Navrhovaný stav - pomocný'!E14+'Navrhovaný stav - pomocný'!E11 -> 44.1131 | F32: ='kros seznam'!G270 -> 15.9 | G32: =F32*E32 -> 701.39829 | H32: ='kros seznam'!J270 -> 0.00016 | I32: =E32*H32 -> 0.007058096 | J32: ='kros seznam'!K270 -> 0 | L32: ='kros seznam'!L270 -> 0.041 | M32: =E32*L32 -> 1.8086371
A34: MATERIÁL TECHNISTONE LIGHT
A35: ='kros seznam'!B147 -> 0 | B35: ='kros seznam'!C132 -> 763 | C35: ='kros seznam'!D132 -> Konstrukce montované z desek, dílců a panelů | G35: =SUM(G36:G38) -> 39288.67898 | H35: =SUM(H36:H38) -> 0.24 | I35: 3.341932 | J35: 0 | L35: 0.064 | M35: 2.8232384
A36: ='kros seznam'!B148 -> K | B36: ='kros seznam'!C148 -> 763111X1 | C36: ='kros seznam'!D148 -> Technistone předstěna - rastr, PUR, montáž | D36: ='kros seznam'!E148 -> m2 | E36: ='Navrhovaný stav - pomocný'!E8 -> 10.2823 | F36: ='kros seznam'!G148 -> 710 | G36: =F36*E36 -> 7300.433 | H36: ='kros seznam'!J148 -> 0.2 | I36: =E36*H36 -> 2.05646 | J36: ='kros seznam'!K148 -> 0 | L36: ='kros seznam'!L148 -> 0 | M36: =L36*E36 -> 0
A37: ='kros seznam'!B150 -> K | B37: ='kros seznam'!C150 -> 763111X3 | C37: ='kros seznam'!D150 -> Technistone stěna - rastr, PUR, montáž | D37: ='kros seznam'!E150 -> m2 | E37: ='Navrhovaný stav - pomocný'!E9 -> 32.1368 | F37: ='kros seznam'!G150 -> 938 | G37: =F37*E37 -> 30144.3184 | H37: ='kros seznam'!J150 -> 0.04 | I37: =H37*E37 -> 1.285472 | J37: ='kros seznam'!K150 -> 0 | L37: ='kros seznam'!L150 -> 0 | M37: =L37*E37 -> 0
A38: ='kros seznam'!B134 -> K | B38: ='kros seznam'!C134 -> 763111717 | C38: ='kros seznam'!D134 -> SDK příčka základní penetrační nátěr | D38: ='kros seznam'!E134 -> m2 | E38: ='Navrhovaný stav - pomocný'!E11+'Navrhovaný stav - pomocný'!E13+'Navrhovaný stav - pomocný'!E14 -> 44.1131 | F38: ='kros seznam'!G134 -> 41.8 | G38: =F38*E38 -> 1843.92758 | H38: 0 | I38: =E38*H38 -> 0 | J38: 0 | L38: 0.064 | M38: =E38*L38 -> 2.8232384
A39: ='kros seznam'!B269 -> D | B39: ='kros seznam'!C269 -> 784 | C39: ='kros seznam'!D269 -> Dokončovací práce - malby | G39: =SUM(G40) -> 701.39829 | H39: 0 | I39: 0 | J39: 0 | L39: 0 | M39: 0
A40: ='kros seznam'!B270 -> K | B40: ='kros seznam'!C270 -> 784453601 | C40: ='kros seznam'!D270 -> Malby směsi PRIMALEX tekuté hlinkové bílé dvojnásobné v místnostech v do 3,8 m | D40: ='kros seznam'!E270 -> m2 | E40: ='Navrhovaný stav - pomocný'!E11+'Navrhovaný stav - pomocný'!E13+'Navrhovaný stav - pomocný'!E14 -> 44.1131 | F40: ='kros seznam'!G270 -> 15.9 | G40: =F40*E40 -> 701.39829 | H40: ='kros seznam'!J277 -> 0 | I40: =E40*H40 -> 0 | J40: ='kros seznam'!K277 -> 0 | L40: ='kros seznam'!L277 -> 0 | M40: =E40*L40 -> 0
A42: TECHNISTONE LIGHT OBKLAD
A43: ='kros seznam'!B261 -> D | B43: ='kros seznam'!C261 -> 782 | C43: ='kros seznam'!D261 -> Dokončovací práce - obklady z kamene | G43: =SUM(G44:G45) -> 31065.195 | H43: =SUM(H44:H45) -> 0.037 | I43: 0.0866815 | J43: 0 | L43: 0.382 | M43: 6.708111
A44: ='kros seznam'!B262 -> K | B44: ='kros seznam'!C262 -> 782111120 | C44: ='kros seznam'!D262 -> Montáž obkladu kámen měkký stěn řemínky tloušťky do 25 mm se zednickou výpomocí | D44: ='kros seznam'!E262 -> m2 | E44: ='Navrhovaný stav - pomocný'!E10 -> 17.5605 | F44: ='kros seznam'!G262 -> 1390 | G44: =F44*E44 -> 24409.095 | H44: 0.003 | I44: =E44*H44 -> 0.0526815 | J44: ='kros seznam'!K262 -> 0 | L44: 0.382 | M44: =L44*E44 -> 6.708111
A45: ='kros seznam'!B263 -> M | B45: ='kros seznam'!C263 -> 583X2 | C45: ='kros seznam'!D263 -> Technistone Light - obklad | D45: ='kros seznam'!E263 -> m2 | E45: ='Navrhovaný stav'!K60 -> 22.187 | F45: ='Navrhovaný stav'!L60 -> 300 | G45: =F45*E45 -> 6656.1 | H45: 0.034 | I45: ='kros seznam'!J263 -> 0.034 | J45: ='kros seznam'!K263 -> 0 | L45: 0 | M45: =L45*E45 -> 0
A47: TECHNISTONE LIGHT DLAŽBA
A48: ='kros seznam'!B215 -> D | B48: ='kros seznam'!C215 -> 772 | C48: ='kros seznam'!D215 -> Podlahy z kamene | G48: =SUM(G49:G50) -> 2671.7004 | H48: 0.04 | I48: 0.11856012 | J48: 0 | K48: 0.893 | L48: 0.893 | M48: 2.4394974
A49: ='kros seznam'!B216 -> K | B49: ='kros seznam'!C216 -> 772521140 | C49: ='kros seznam'!D216 -> Kladení dlažby z kamene pravoúhlých desek a dlaždic tl do 30 mm | D49: ='kros seznam'!E216 -> m2 | E49: ='Navrhovaný stav - pomocný'!E15 -> 2.7318 | F49: ='kros seznam'!G216 -> 615 | G49: =F49*E49 -> 1680.057 | H49: 0.006 | I49: =H49*E49 -> 0.0163908 | J49: ='kros seznam'!K216 -> 0 | K49: ='kros seznam'!L216 -> 0.893 | L49: 0.893 | M49: =L49*E49 -> 2.4394974
A50: ='kros seznam'!B217 -> M | B50: ='kros seznam'!C217 -> 583X1 | C50: ='kros seznam'!D217 -> Technistone Light - dlažba | D50: ='kros seznam'!E217 -> m2 | E50: ='Navrhovaný stav'!K67 -> 3.00498 | F50: ='Navrhovaný stav'!L67 -> 330 | G50: =F50*E50 -> 991.6434 | H50: 0.034 | I50: =H50*E50 -> 0.10216932 | J50: ='kros seznam'!K217 -> 0 | K50: ='kros seznam'!L217 -> 0 | L50: 0 | M50: =L50*E50 -> 0
A52: PODLAHY
A53: ='kros seznam'!B16 -> D | B53: ='kros seznam'!C16 -> 6 | C53: ='kros seznam'!D16 -> Úpravy povrchů, podlahy a osazování výplní | G53: =SUM(G54:G56) -> 1237.77858 | H53: =SUM(H54:H56) -> 3.3094 | I53: 0.3369609737 | J53: 0 | L53: 19.264 | M53: 0.966947928
A54: ='kros seznam'!B40 -> K | B54: ='kros seznam'!C40 -> 631311114 | C54: ='kros seznam'!D40 -> Mazanina tl do 80 mm z betonu prostého tř. C 16/20 | D54: ='kros seznam'!E40 -> m3 | E54: =0.05*'Navrhovaný stav - pomocný'!E15 -> 0.13659 | F54: ='kros seznam'!G40 -> 3230 | G54: =F54*E54 -> 441.1857 | H54: ='kros seznam'!J40 -> 2.25634 | I54: =E54*H54 -> 0.3081934806 | J54: ='kros seznam'!K40 -> 0 | L54: ='kros seznam'!L40 -> 3.213 | M54: =L54*E54 -> 0.43886367
A55: ='kros seznam'!B41 -> K | B55: ='kros seznam'!C41 -> 631319171 | C55: ='kros seznam'!D41 -> Příplatek k mazanině tl do 80 mm za stržení povrchu spodní vrstvy před vložením výztuže | D55: ='kros seznam'!E41 -> m3 | E55: =0.05*'Navrhovaný stav - pomocný'!E15 -> 0.13659 | F55: ='kros seznam'!G41 -> 212 | G55: =F55*E55 -> 28.95708 | H55: ='kros seznam'!J41 -> 0 | I55: =E55*H55 -> 0 | J55: ='kros seznam'!K41 -> 0 | L55: ='kros seznam'!L41 -> 0.82 | M55: =L55*E55 -> 0.1120038
A56: ='kros seznam'!B42 -> K | B56: ='kros seznam'!C42 -> 631362021 | C56: ='kros seznam'!D42 -> Výztuž mazanin svařovanými sítěmi Kari | D56: ='kros seznam'!E42 -> t | E56: =0.01*'Navrhovaný stav - pomocný'!E15 -> 0.027318 | F56: ='kros seznam'!G42 -> 28100 | G56: =F56*E56 -> 767.6358 | H56: ='kros seznam'!J42 -> 1.05306 | I56: =E56*H56 -> 0.02876749308 | J56: ='kros seznam'!K42 -> 0 | L56: ='kros seznam'!L42 -> 15.231 | M56: =L56*E56 -> 0.416080458
A57: ='kros seznam'!B66 -> D | B57: ='kros seznam'!C66 -> 713 | C57: ='kros seznam'!D66 -> Izolace tepelné | G57: =SUM(G58:G62) -> 390.1466216 | H57: 0.0006003921569 | I57: 0.001563568824 | J57: 0 | K57: 0 | L57: 0.085 | M57: 0.2349348
A58: ='kros seznam'!B67 -> K | B58: ='kros seznam'!C67 -> 713121211 | C58: ='kros seznam'!D67 -> Montáž izolace tepelné podlah volně kladenými okrajovými pásky | D58: ='kros seznam'!E67 -> m | E58: ='Navrhovaný stav - pomocný'!C10 -> 11.46 | F58: ='kros seznam'!G67 -> 12.5 | G58: =F58*E58 -> 143.25 | H58: 0 | I58: =H58*E58 -> 0 | J58: 0 | L58: 0 | M58: =L58*E58 -> 0
A59: ='kros seznam'!B68 -> M | B59: ='kros seznam'!C68 -> 631402730 | C59: ='kros seznam'!D68 -> pásek okrajový ROCKWOOL STEPROCK š 80 mm tl.12 mm | D59: ='kros seznam'!E68 -> m | E59: ='Navrhovaný stav - pomocný'!C11 -> 2.59 | F59: ='kros seznam'!G68 -> 12.2 | G59: =F59*E59 -> 31.598 | H59: 0 | I59: =H59*E59 -> 0 | J59: 0 | L59: 0 | M59: =L59*E59 -> 0
A60: ='kros seznam'!B69 -> K | B60: ='kros seznam'!C69 -> 713121111 | C60: ='kros seznam'!D69 -> Montáž izolace tepelné podlah volně kladenými rohožemi, pásy, dílci, deskami 1 vrstva | D60: ='kros seznam'!E69 -> m2 | E60: ='Navrhovaný stav - pomocný'!E15 -> 2.7318 | F60: ='kros seznam'!G69 -> 16.7 | G60: =F60*E60 -> 45.62106 | H60: 0 | I60: =E60*H60 -> 0 | J60: ='kros seznam'!K69 -> 0 | L60: 0.06 | M60: =L60*E60 -> 0.163908
A61: ='kros seznam'!B70 -> M | B61: ='kros seznam'!C70 -> 283766310 | C61: ='kros seznam'!D70 -> deska polystyrénová pro snížení kročejového hluku POLYFON-EPS T 3500 1000x500x20mm | D61: ='kros seznam'!E70 -> m2 | E61: =1.1*'Navrhovaný stav - pomocný'!E15 -> 3.00498 | F61: ='kros seznam'!G70 -> 42 | G61: =F61*E61 -> 126.20916 | H61: =0.049/102 -> 0.0004803921569 | I61: =E61*H61 -> 0.001443568824 | J61: ='kros seznam'!K70 -> 0 | L61: 0 | M61: =L61*E61 -> 0
A62: ='kros seznam'!B71 -> K | B62: ='kros seznam'!C71 -> 713191132 | C62: ='kros seznam'!D71 -> Překrytí izolace tepelné separační fólií tl 0,2 mm u podlah, střech nebo vrchem stropů | D62: ='kros seznam'!E71 -> m2 | E62: =1.04*'Navrhovaný stav - pomocný'!E15 -> 2.841072 | F62: ='kros seznam'!G71 -> 15.3 | G62: =F62*E62 -> 43.4684016 | H62: 0.00012 | I62: ='kros seznam'!J71 -> 0.00012 | J62: ='kros seznam'!K71 -> 0 | L62: 0.025 | M62: =L62*E62 -> 0.0710268
A64: IZOLACE
A65: ='kros seznam'!B60 -> D | B65: ='kros seznam'!C60 -> 711 | C65: ='kros seznam'!D60 -> Izolace proti vodě, vlhkosti a plynům | G65: =SUM(G66:G67) -> 4480.011 | H65: =SUM(H66:H67) -> 0.00946 | I65: 0.0677445 | J65: 0 | L65: 0.52 | M65: 3.895116
A66: ='kros seznam'!B61 -> K | B66: ='kros seznam'!C61 -> 711493112 | C66: ='kros seznam'!D61 -> Izolace proti podpovrchové a tlakové vodě vodorovná SCHOMBURG těsnicí stěrkou AQUAFIN-1K | D66: ='kros seznam'!E61 -> m2 | E66: ='Navrhovaný stav - pomocný'!E22 -> 3.8778 | F66: ='kros seznam'!G61 -> 295 | G66: =F66*E66 -> 1143.951 | H66: ='kros seznam'!J61 -> 0.0045 | I66: =E66*H66 -> 0.0174501 | J66: ='kros seznam'!K61 -> 0 | L66: ='kros seznam'!L61 -> 0.22 | M66: =L66*E66 -> 0.853116
A67: ='kros seznam'!B62 -> K | B67: ='kros seznam'!C62 -> 711493122 | C67: ='kros seznam'!D62 -> Izolace proti podpovrchové a tlakové vodě svislá SCHOMBURG těsnicí stěrkou AQUAFIN-1K | D67: ='kros seznam'!E62 -> m2 | E67: ='Navrhovaný stav - pomocný'!E23 -> 10.14 | F67: ='kros seznam'!G62 -> 329 | G67: =F67*E67 -> 3336.06 | H67: ='kros seznam'!J62 -> 0.00496 | I67: =E67*H67 -> 0.0502944 | J67: ='kros seznam'!K62 -> 0 | L67: ='kros seznam'!L62 -> 0.3 | M67: =L67*E67 -> 3.042
A69: DVEŘE OCELOVÉ ZÁRUBNĚ 60 cm
A70: ='kros seznam'!B16 -> D | B70: ='kros seznam'!C16 -> 6 | C70: ='kros seznam'!D16 -> Úpravy povrchů, podlahy a osazování výplní | G70: =SUM(G71:G73) -> 0 | H70: 0.02727 | I70: 0 | J70: 0 | L70: 0.832 | M70: 0
A71: ='kros seznam'!B17 -> K | B71: ='kros seznam'!C17 -> 610991111 | C71: ='kros seznam'!D17 -> Zakrývání vnitřních a vnějších výplní otvorů, předmětů a konstrukcí folií a páskou | D71: ='kros seznam'!E17 -> m2 | E71: =IF(A69='Navrhovaný stav - pomocný'!$C$51,'Navrhovaný stav'!D39,0)+IF(A69='Navrhovaný stav - pomocný'!$C$52,'Navrhovaný stav'!E39,0) -> 0 | F71: ='kros seznam'!G17 -> 30.6 | G71: =F71*E71 -> 0 | H71: ='kros seznam'!J17 -> 9e-05 | I71: 0 | J71: ='kros seznam'!K17 -> 0 | L71: ='kros seznam'!L17 -> 0.078 | M71: =L71*E71 -> 0
A72: ='kros seznam'!B29 -> K | B72: ='kros seznam'!C29 -> 642942111 | C72: ='kros seznam'!D29 -> Osazování zárubní nebo rámů dveřních kovových do 2,5 m2 na MC | D72: ='kros seznam'!E29 -> kus | E72: =IF(A69='Navrhovaný stav - pomocný'!$C$51,'Navrhovaný stav - pomocný'!$E$51,0)+IF(A69='Navrhovaný stav - pomocný'!$C$52,'Navrhovaný stav - pomocný'!$E$52,0) -> 0 | F72: ='kros seznam'!G29 -> 211 | G72: 0 | H72: ='kros seznam'!J29 -> 0.01698 | I72: 0 | J72: ='kros seznam'!K29 -> 0 | L72: ='kros seznam'!L29 -> 0.754 | M72: 0
A73: ='kros seznam'!B30 -> M | B73: ='kros seznam'!C30 -> 553311000 | C73: ='kros seznam'!D30 -> zárubeň ocelová pro běžné zdění H 95 600 L/P | D73: ='kros seznam'!E30 -> kus | E73: =+E72 -> 0 | F73: ='kros seznam'!G30 -> 577 | G73: 0 | H73: ='kros seznam'!J30 -> 0.0102 | I73: 0 | J73: ='kros seznam'!K30 -> 0 | L73: ='kros seznam'!L30 -> 0 | M73: 0
A74: ='kros seznam'!B159 -> D | B74: ='kros seznam'!C159 -> 766 | C74: ='kros seznam'!D159 -> Konstrukce truhlářské | G74: =SUM(G75:G77) -> 0 | H74: 0.013 | I74: 0 | J74: 0 | L74: 1.682 | M74: 0
A75: ='kros seznam'!B160 -> K | B75: ='kros seznam'!C160 -> 766X | C75: ='kros seznam'!D160 -> Dveřního kování D+M | D75: ='kros seznam'!E160 -> kus | E75: =+E73 -> 0 | F75: ='kros seznam'!G160 -> 350 | G75: 0 | H75: 0 | I75: 0 | J75: 0 | L75: 0 | M75: 0
A76: ='kros seznam'!B162 -> K | B76: ='kros seznam'!C162 -> 766660001 | C76: ='kros seznam'!D162 -> Montáž dveřních křídel otvíravých 1křídlových š do 0,8 m do ocelové zárubně | D76: ='kros seznam'!E162 -> kus | E76: =+E75 -> 0 | F76: ='kros seznam'!G162 -> 526 | G76: 0 | H76: ='kros seznam'!J162 -> 0 | I76: 0 | J76: ='kros seznam'!K162 -> 0 | L76: ='kros seznam'!L162 -> 1.682 | M76: 0
A77: ='kros seznam'!B163 -> M | B77: ='kros seznam'!C163 -> 611617130 | C77: ='kros seznam'!D163 -> dveře vnitřní 1křídlové 60x197 cm | D77: ='kros seznam'!E163 -> kus | E77: =+E76 -> 0 | F77: ='kros seznam'!G163 -> 2200 | G77: 0 | H77: 0.013 | I77: =H77*E77 -> 0 | J77: ='kros seznam'!K163 -> 0 | L77: 0 | M77: 0
A78: ='kros seznam'!B267 -> D | B78: ='kros seznam'!C267 -> 783 | C78: ='kros seznam'!D267 -> Dokončovací práce - nátěry | G78: =SUM(G79) -> 0 | H78: 0.00075 | I78: 0 | J78: 0 | L78: 0.424 | M78: 0
A79: ='kros seznam'!B268 -> K | B79: ='kros seznam'!C268 -> 783221112 | C79: ='kros seznam'!D268 -> Nátěry syntetické KDK barva dražší lesklý povrch 1x antikorozní, 1x základní, 2x email | D79: ='kros seznam'!E268 -> m2 | E79: =IF(A69='Navrhovaný stav - pomocný'!$C$51,'Navrhovaný stav'!D40,0)+IF(A69='Navrhovaný stav - pomocný'!$C$52,'Navrhovaný stav'!E40,0) -> 0 | F79: ='kros seznam'!G268 -> 249 | G79: =F79*E79 -> 0 | H79: ='kros seznam'!J268 -> 0.00075 | I79: 0 | J79: ='kros seznam'!K268 -> 0 | L79: ='kros seznam'!L268 -> 0.424 | M79: 0
A81: DVEŘE OCELOVÉ ZÁRUBNĚ 70 cm
A82: ='kros seznam'!B16 -> D | B82: ='kros seznam'!C16 -> 6 | C82: ='kros seznam'!D16 -> Úpravy povrchů, podlahy a osazování výplní | G82: =SUM(G83:G85) -> 0 | H82: =SUM(H83:H85) -> 0.02738 | I82: =SUM(I83:I85) -> 0 | J82: =SUM(J83:J85) -> 0 | L82: =SUM(L83:L85) -> 0.832 | M82: =SUM(M83:M85) -> 0
A83: ='kros seznam'!B17 -> K | B83: ='kros seznam'!C17 -> 610991111 | C83: ='kros seznam'!D17 -> Zakrývání vnitřních a vnějších výplní otvorů, předmětů a konstrukcí folií a páskou | D83: ='kros seznam'!E17 -> m2 | E83: =IF(A81='Navrhovaný stav - pomocný'!$C$51,'Navrhovaný stav'!D39,0)+IF(A81='Navrhovaný stav - pomocný'!$C$52,'Navrhovaný stav'!E39,0) -> 0 | F83: ='kros seznam'!G17 -> 30.6 | G83: =F83*E83 -> 0 | H83: 0 | I83: 0 | J83: ='kros seznam'!K17 -> 0 | L83: 0.078 | M83: =L83*E83 -> 0
A84: ='kros seznam'!B29 -> K | B84: ='kros seznam'!C29 -> 642942111 | C84: ='kros seznam'!D29 -> Osazování zárubní nebo rámů dveřních kovových do 2,5 m2 na MC | D84: ='kros seznam'!E29 -> kus | E84: =IF(A81='Navrhovaný stav - pomocný'!$C$51,'Navrhovaný stav - pomocný'!$E$51,0)+IF(A81='Navrhovaný stav - pomocný'!$C$52,'Navrhovaný stav - pomocný'!$E$52,0) -> 0 | F84: ='kros seznam'!G29 -> 211 | G84: 0 | H84: ='kros seznam'!J29 -> 0.01698 | I84: 0 | J84: ='kros seznam'!K29 -> 0 | L84: ='kros seznam'!L29 -> 0.754 | M84: 0
A85: ='kros seznam'!B31 -> M | B85: ='kros seznam'!C31 -> 553311020 | C85: ='kros seznam'!D31 -> zárubeň ocelová pro běžné zdění H 95 700 L/P | D85: ='kros seznam'!E31 -> kus | E85: =+E84 -> 0 | F85: ='kros seznam'!G31 -> 588 | G85: 0 | H85: ='kros seznam'!J31 -> 0.0104 | I85: 0 | J85: ='kros seznam'!K31 -> 0 | L85: ='kros seznam'!L31 -> 0 | M85: 0
A86: ='kros seznam'!B159 -> D | B86: ='kros seznam'!C159 -> 766 | C86: ='kros seznam'!D159 -> Konstrukce truhlářské | G86: =SUM(G87:G89) -> 0 | H86: =SUM(H87:H89) -> 0.014 | I86: 0 | J86: 0 | L86: 1.682 | M86: 0
A87: ='kros seznam'!B160 -> K | B87: ='kros seznam'!C160 -> 766X | C87: ='kros seznam'!D160 -> Dveřního kování D+M | D87: ='kros seznam'!E160 -> kus | E87: =+E85 -> 0 | F87: ='kros seznam'!G160 -> 350 | G87: 0 | H87: 0 | I87: 0 | J87: 0 | L87: 0 | M87: 0
A88: ='kros seznam'!B162 -> K | B88: ='kros seznam'!C162 -> 766660001 | C88: ='kros seznam'!D162 -> Montáž dveřních křídel otvíravých 1křídlových š do 0,8 m do ocelové zárubně | D88: ='kros seznam'!E162 -> kus | E88: =+E87 -> 0 | F88: ='kros seznam'!G162 -> 526 | G88: 0 | H88: ='kros seznam'!J162 -> 0 | I88: 0 | J88: ='kros seznam'!K162 -> 0 | L88: ='kros seznam'!L162 -> 1.682 | M88: 0
A89: ='kros seznam'!B164 -> M | B89: ='kros seznam'!C164 -> 611617170 | C89: ='kros seznam'!D164 -> dveře vnitřní 1křídlové 70x197 cm | D89: ='kros seznam'!E164 -> kus | E89: =+E88 -> 0 | F89: ='Navrhovaný stav'!L48 -> 1500 | G89: 0 | H89: ='kros seznam'!J164 -> 0.014 | I89: 0 | J89: ='kros seznam'!K164 -> 0 | L89: ='kros seznam'!L164 -> 0 | M89: 0
A90: ='kros seznam'!B267 -> D | B90: ='kros seznam'!C267 -> 783 | C90: ='kros seznam'!D267 -> Dokončovací práce - nátěry | G90: =SUM(G91) -> 0 | H90: 0.00075 | I90: 0 | J90: 0 | L90: 0.424 | M90: 0
A91: ='kros seznam'!B268 -> K | B91: ='kros seznam'!C268 -> 783221112 | C91: ='kros seznam'!D268 -> Nátěry syntetické KDK barva dražší lesklý povrch 1x antikorozní, 1x základní, 2x email | D91: ='kros seznam'!E268 -> m2 | E91: =IF(A81='Navrhovaný stav - pomocný'!$C$51,'Navrhovaný stav'!D40,0)+IF(A81='Navrhovaný stav - pomocný'!$C$52,'Navrhovaný stav'!E40,0) -> 0 | F91: ='kros seznam'!G268 -> 249 | G91: 0 | H91: ='kros seznam'!J268 -> 0.00075 | I91: 0 | J91: ='kros seznam'!K268 -> 0 | L91: ='kros seznam'!L268 -> 0.424 | M91: 0
A93: DVEŘE OCELOVÉ ZÁRUBNĚ 80 cm
A94: ='kros seznam'!B16 -> D | B94: ='kros seznam'!C16 -> 6 | C94: ='kros seznam'!D16 -> Úpravy povrchů, podlahy a osazování výplní | G94: =SUM(G95:G97) -> 0 | H94: 0.02758 | I94: 0 | J94: 0 | L94: 0.832 | M94: 0
A95: ='kros seznam'!B17 -> K | B95: ='kros seznam'!C17 -> 610991111 | C95: ='kros seznam'!D17 -> Zakrývání vnitřních a vnějších výplní otvorů, předmětů a konstrukcí folií a páskou | D95: ='kros seznam'!E17 -> m2 | E95: =IF(A93='Navrhovaný stav - pomocný'!$C$51,'Navrhovaný stav'!D39,0)+IF(A93='Navrhovaný stav - pomocný'!$C$52,'Navrhovaný stav'!E39,0) -> 0 | F95: 30.6 | G95: =F95*E95 -> 0 | H95: 0 | I95: 0 | J95: ='kros seznam'!K17 -> 0 | L95: 0.078 | M95: ='kros seznam'!N17 -> 0
A96: ='kros seznam'!B29 -> K | B96: ='kros seznam'!C29 -> 642942111 | C96: ='kros seznam'!D29 -> Osazování zárubní nebo rámů dveřních kovových do 2,5 m2 na MC | D96: ='kros seznam'!E29 -> kus | E96: =IF(A93='Navrhovaný stav - pomocný'!$C$51,'Navrhovaný stav - pomocný'!$E$51,0)+IF(A93='Navrhovaný stav - pomocný'!$C$52,'Navrhovaný stav - pomocný'!$E$52,0) -> 0 | F96: ='kros seznam'!G29 -> 211 | G96: 0 | H96: ='kros seznam'!J29 -> 0.01698 | I96: 0 | J96: ='kros seznam'!K29 -> 0 | L96: ='kros seznam'!L29 -> 0.754 | M96: 0
A97: ='kros seznam'!B32 -> M | B97: ='kros seznam'!C32 -> 553311040 | C97: ='kros seznam'!D32 -> zárubeň ocelová pro běžné zdění H 95 800 L/P | D97: ='kros seznam'!E32 -> kus | E97: =+E96 -> 0 | F97: ='kros seznam'!G32 -> 600 | G97: 0 | H97: ='kros seznam'!J32 -> 0.0106 | I97: 0 | J97: ='kros seznam'!K32 -> 0 | L97: ='kros seznam'!L32 -> 0 | M97: 0
A98: ='kros seznam'!B159 -> D | B98: ='kros seznam'!C159 -> 766 | C98: ='kros seznam'!D159 -> Konstrukce truhlářské | G98: =SUM(G99:G101) -> 0 | H98: 0.016 | I98: 0 | J98: 0 | L98: 1.682 | M98: 0
A99: ='kros seznam'!B160 -> K | B99: ='kros seznam'!C160 -> 766X | C99: ='kros seznam'!D160 -> Dveřního kování D+M | D99: ='kros seznam'!E160 -> kus | E99: =+E97 -> 0 | F99: ='kros seznam'!G160 -> 350 | G99: 0 | H99: 0 | I99: 0 | J99: 0 | L99: 0 | M99: 0
A100: ='kros seznam'!B162 -> K | B100: ='kros seznam'!C162 -> 766660001 | C100: ='kros seznam'!D162 -> Montáž dveřních křídel otvíravých 1křídlových š do 0,8 m do ocelové zárubně | D100: ='kros seznam'!E162 -> kus | E100: =+E99 -> 0 | F100: ='kros seznam'!G162 -> 526 | G100: 0 | H100: ='kros seznam'!J162 -> 0 | I100: 0 | J100: ='kros seznam'!K162 -> 0 | L100: ='kros seznam'!L162 -> 1.682 | M100: 0
A101: ='kros seznam'!B165 -> M | B101: ='kros seznam'!C165 -> 611617210 | C101: ='kros seznam'!D165 -> dveře vnitřní 1křídlové 80x197 cm | D101: ='kros seznam'!E165 -> kus | E101: =+E100 -> 0 | F101: ='Navrhovaný stav'!L48 -> 1500 | G101: 0 | H101: ='kros seznam'!J165 -> 0.016 | I101: 0 | J101: ='kros seznam'!K165 -> 0 | L101: ='kros seznam'!L165 -> 0 | M101: 0
A102: ='kros seznam'!B267 -> D | B102: ='kros seznam'!C267 -> 783 | C102: ='kros seznam'!D267 -> Dokončovací práce - nátěry | G102: =SUM(G103) -> 0 | H102: 0.001 | I102: 0 | J102: 0 | L102: 0.424 | M102: 0
A103: ='kros seznam'!B268 -> K | B103: ='kros seznam'!C268 -> 783221112 | C103: ='kros seznam'!D268 -> Nátěry syntetické KDK barva dražší lesklý povrch 1x antikorozní, 1x základní, 2x email | D103: ='kros seznam'!E268 -> m2 | E103: =IF(A93='Navrhovaný stav - pomocný'!$C$51,'Navrhovaný stav'!D40,0)+IF(A93='Navrhovaný stav - pomocný'!$C$52,'Navrhovaný stav'!E40,0) -> 0 | F103: ='kros seznam'!G268 -> 249 | G103: 0 | H103: 0.001 | I103: 0 | J103: ='kros seznam'!K268 -> 0 | L103: 0.424 | M103: 0
A105: DVEŘE OCELOVÉ ZÁRUBNĚ 90 cm
A106: ='kros seznam'!B16 -> D | B106: ='kros seznam'!C16 -> 6 | C106: ='kros seznam'!D16 -> Úpravy povrchů, podlahy a osazování výplní | G106: =SUM(G107:G109) -> 0 | H106: =SUM(H107:H109) -> 0.02787 | I106: 0 | J106: 0 | L106: 0.832 | M106: 0
A107: ='kros seznam'!B17 -> K | B107: ='kros seznam'!C17 -> 610991111 | C107: ='kros seznam'!D17 -> Zakrývání vnitřních a vnějších výplní otvorů, předmětů a konstrukcí folií a páskou | D107: ='kros seznam'!E17 -> m2 | E107: =IF(A105='Navrhovaný stav - pomocný'!$C$51,'Navrhovaný stav'!D39,0)+IF(A105='Navrhovaný stav - pomocný'!$C$52,'Navrhovaný stav'!E39,0) -> 0 | F107: ='kros seznam'!G17 -> 30.6 | G107: 0 | H107: ='kros seznam'!J17 -> 9e-05 | I107: 0 | J107: ='kros seznam'!K17 -> 0 | L107: ='kros seznam'!L17 -> 0.078 | M107: 0
A108: ='kros seznam'!B29 -> K | B108: ='kros seznam'!C29 -> 642942111 | C108: ='kros seznam'!D29 -> Osazování zárubní nebo rámů dveřních kovových do 2,5 m2 na MC | D108: ='kros seznam'!E29 -> kus | E108: =IF(A105='Navrhovaný stav - pomocný'!$C$51,'Navrhovaný stav - pomocný'!$E$51,0)+IF(A105='Navrhovaný stav - pomocný'!$C$52,'Navrhovaný stav - pomocný'!$E$52,0) -> 0 | F108: ='kros seznam'!G29 -> 211 | G108: 0 | H108: ='kros seznam'!J29 -> 0.01698 | I108: 0 | J108: ='kros seznam'!K29 -> 0 | L108: ='kros seznam'!L29 -> 0.754 | M108: 0
A109: ='kros seznam'!B33 -> M | B109: ='kros seznam'!C33 -> 553311060 | C109: ='kros seznam'!D33 -> zárubeň ocelová pro běžné zdění H 95 900 L/P | D109: ='kros seznam'!E33 -> kus | E109: =+E108 -> 0 | F109: ='kros seznam'!G33 -> 614 | G109: 0 | H109: ='kros seznam'!J33 -> 0.0108 | I109: 0 | J109: ='kros seznam'!K33 -> 0 | L109: ='kros seznam'!L33 -> 0 | M109: 0
A110: ='kros seznam'!B159 -> D | B110: ='kros seznam'!C159 -> 766 | C110: ='kros seznam'!D159 -> Konstrukce truhlářské | G110: =SUM(G111:G113) -> 0 | H110: 0.019 | I110: 0 | J110: 0 | L110: 1.825 | M110: 0
A111: ='kros seznam'!B160 -> K | B111: ='kros seznam'!C160 -> 766X | C111: ='kros seznam'!D160 -> Dveřního kování D+M | D111: ='kros seznam'!E160 -> kus | E111: =+E109 -> 0 | F111: ='kros seznam'!G160 -> 350 | G111: 0 | H111: 0 | I111: 0 | J111: 0 | L111: 0 | M111: 0
A112: ='kros seznam'!B166 -> K | B112: ='kros seznam'!C166 -> 766660002 | C112: ='kros seznam'!D166 -> Montáž dveřních křídel otvíravých 1křídlových š přes 0,8 m do ocelové zárubně | D112: ='kros seznam'!E166 -> kus | E112: =+E111 -> 0 | F112: ='kros seznam'!G166 -> 571 | G112: 0 | H112: ='kros seznam'!J166 -> 0 | I112: 0 | J112: ='kros seznam'!K166 -> 0 | L112: ='kros seznam'!L166 -> 1.825 | M112: 0
A113: ='kros seznam'!B167 -> M | B113: ='kros seznam'!C167 -> 611617250 | C113: ='kros seznam'!D167 -> dveře vnitřní 90x197 cm | D113: ='kros seznam'!E167 -> kus | E113: =+E112 -> 0 | F113: ='Navrhovaný stav'!L48 -> 1500 | G113: 0 | H113: ='kros seznam'!J167 -> 0.019 | I113: 0 | J113: ='kros seznam'!K167 -> 0 | L113: ='kros seznam'!L167 -> 0 | M113: 0
A114: ='kros seznam'!B267 -> D | B114: ='kros seznam'!C267 -> 783 | C114: ='kros seznam'!D267 -> Dokončovací práce - nátěry | G114: =SUM(G115) -> 0 | H114: 0.00075 | I114: 0 | J114: 0 | L114: 0.424 | M114: 0
A115: ='kros seznam'!B268 -> K | B115: ='kros seznam'!C268 -> 783221112 | C115: ='kros seznam'!D268 -> Nátěry syntetické KDK barva dražší lesklý povrch 1x antikorozní, 1x základní, 2x email | D115: ='kros seznam'!E268 -> m2 | E115: =IF(A105='Navrhovaný stav - pomocný'!$C$51,'Navrhovaný stav'!D40,0)+IF(A105='Navrhovaný stav - pomocný'!$C$52,'Navrhovaný stav'!E40,0) -> 0 | F115: ='kros seznam'!G268 -> 249 | G115: 0 | H115: ='kros seznam'!J268 -> 0.00075 | I115: 0 | J115: ='kros seznam'!K268 -> 0 | L115: ='kros seznam'!L268 -> 0.424 | M115: 0
A117: DVEŘE OBLOŽKOVÉ ZÁRUBNĚ 60 cm
A118: ='kros seznam'!B159 -> D | B118: ='kros seznam'!C159 -> 766 | C118: ='kros seznam'!D159 -> Konstrukce truhlářské | F118: =SUM(F119:F123) -> 6203 | G118: 6203 | H118: 0.02945 | I118: 0.02945 | J118: 0 | L118: 4.775 | M118: 2.925
A119: ='kros seznam'!B160 -> K | B119: ='kros seznam'!C160 -> 766X | C119: ='kros seznam'!D160 -> Dveřního kování D+M | D119: ='kros seznam'!E160 -> kus | E119: =IF(A117='Navrhovaný stav - pomocný'!$C$51,'Navrhovaný stav - pomocný'!$E$51,0)+IF(A117='Navrhovaný stav - pomocný'!$C$52,'Navrhovaný stav - pomocný'!$E$52,0) -> 1 | F119: ='kros seznam'!G160 -> 350 | G119: 350 | H119: 0 | I119: 0 | J119: 0 | L119: 0 | M119: 0
A120: ='kros seznam'!B168 -> K | B120: ='kros seznam'!C168 -> 766660171 | C120: ='kros seznam'!D168 -> Montáž dveřních křídel otvíravých 1křídlových š do 0,8 m do obložkové zárubně | D120: ='kros seznam'!E168 -> kus | E120: =E119 -> 1 | F120: ='kros seznam'!G168 -> 538 | G120: 538 | H120: 0 | I120: 0 | J120: ='kros seznam'!K168 -> 0 | L120: 1.85 | M120: ='kros seznam'!N168 -> 0
A121: ='kros seznam'!B169 -> M | B121: ='kros seznam'!C169 -> 611617130 | C121: ='kros seznam'!D169 -> dveře vnitřní 1křídlové 60x197 cm | D121: ='kros seznam'!E169 -> kus | E121: =E120 -> 1 | F121: ='Navrhovaný stav'!L48 -> 1500 | G121: 1500 | H121: ='kros seznam'!J169 -> 0.013 | I121: 0.013 | J121: ='kros seznam'!K169 -> 0 | L121: ='kros seznam'!L169 -> 0 | M121: 0
A122: ='kros seznam'!B174 -> K | B122: ='kros seznam'!C174 -> 766682111 | C122: ='kros seznam'!D174 -> Montáž zárubní obložkových pro dveře jednokřídlové tl stěny do 170 mm | D122: ='kros seznam'!E174 -> kus | E122: =E121 -> 1 | F122: ='kros seznam'!G174 -> 945 | G122: 945 | H122: ='kros seznam'!J174 -> 0.00045 | I122: 0.00045 | J122: ='kros seznam'!K174 -> 0 | L122: ='kros seznam'!L174 -> 2.925 | M122: 2.925
A123: ='kros seznam'!B175 -> M | B123: ='kros seznam'!C175 -> 611822580 | C123: ='kros seznam'!D175 -> zárubeň obložková pro dveře 1křídlové 60,70,80,90x197 cm, tl. 8 - 17 cm | D123: ='kros seznam'!E175 -> kus | E123: =E122 -> 1 | F123: ='kros seznam'!G175 -> 2870 | G123: 2870 | H123: 0.016 | I123: 0.016 | J123: ='kros seznam'!K175 -> 0 | L123: ='kros seznam'!M175 -> 0 | M123: ='kros seznam'!N175 -> 0
A125: DVEŘE OBLOŽKOVÉ ZÁRUBNĚ 70 cm
A126: ='kros seznam'!B159 -> D | B126: ='kros seznam'!C159 -> 766 | C126: ='kros seznam'!D159 -> Konstrukce truhlářské | F126: =SUM(F127:F131) -> 6203 | G126: 0 | H126: 0.02945 | I126: 19.5 | J126: 0 | L126: 4.73 | M126: 0
A127: ='kros seznam'!B160 -> K | B127: ='kros seznam'!C160 -> 766X | C127: ='kros seznam'!D160 -> Dveřního kování D+M | D127: ='kros seznam'!E160 -> kus | E127: =IF(A125='Navrhovaný stav - pomocný'!$C$51,'Navrhovaný stav - pomocný'!$E$51,0)+IF(A125='Navrhovaný stav - pomocný'!$C$52,'Navrhovaný stav - pomocný'!$E$52,0) -> 0 | F127: ='kros seznam'!G160 -> 350 | G127: 0 | H127: 0 | I127: 0 | J127: 0 | L127: 0 | M127: 0
A128: ='kros seznam'!B168 -> K | B128: ='kros seznam'!C168 -> 766660171 | C128: ='kros seznam'!D168 -> Montáž dveřních křídel otvíravých 1křídlových š do 0,8 m do obložkové zárubně | D128: ='kros seznam'!E168 -> kus | E128: =E127 -> 0 | F128: ='kros seznam'!G168 -> 538 | G128: 0 | H128: ='kros seznam'!J168 -> 0 | I128: 0 | J128: ='kros seznam'!K168 -> 0 | L128: ='kros seznam'!L168 -> 1.805 | M128: 0
A129: ='kros seznam'!B170 -> M | B129: ='kros seznam'!C170 -> 611617170 | C129: ='kros seznam'!D170 -> dveře vnitřní 1křídlové 70x197 cm | D129: ='kros seznam'!E170 -> kus | E129: =E128 -> 0 | F129: ='Navrhovaný stav'!L48 -> 1500 | G129: 0 | H129: 0.013 | I129: =H129*F129 -> 19.5 | J129: 0 | L129: 0 | M129: 0
A130: ='kros seznam'!B174 -> K | B130: ='kros seznam'!C174 -> 766682111 | C130: ='kros seznam'!D174 -> Montáž zárubní obložkových pro dveře jednokřídlové tl stěny do 170 mm | D130: ='kros seznam'!E174 -> kus | E130: =E129 -> 0 | F130: ='kros seznam'!G174 -> 945 | G130: 0 | H130: ='kros seznam'!J174 -> 0.00045 | I130: 0 | J130: ='kros seznam'!K174 -> 0 | L130: ='kros seznam'!L174 -> 2.925 | M130: 0
A131: ='kros seznam'!B175 -> M | B131: ='kros seznam'!C175 -> 611822580 | C131: ='kros seznam'!D175 -> zárubeň obložková pro dveře 1křídlové 60,70,80,90x197 cm, tl. 8 - 17 cm | D131: ='kros seznam'!E175 -> kus | E131: =E130 -> 0 | F131: ='kros seznam'!G175 -> 2870 | G131: 0 | H131: ='kros seznam'!J175 -> 0.016 | I131: 0 | J131: ='kros seznam'!K175 -> 0 | L131: ='kros seznam'!L175 -> 0 | M131: 0
A133: DVEŘE OBLOŽKOVÉ ZÁRUBNĚ 80 cm
A134: ='kros seznam'!B159 -> D | B134: ='kros seznam'!C159 -> 766 | C134: ='kros seznam'!D159 -> Konstrukce truhlářské | G134: =SUM(G135:G139) -> 0 | H134: 0.032 | I134: 0 | J134: 0 | L134: 4.73 | M134: 0
A135: ='kros seznam'!B160 -> K | B135: ='kros seznam'!C160 -> 766X | C135: ='kros seznam'!D160 -> Dveřního kování D+M | D135: ='kros seznam'!E160 -> kus | E135: =IF(A133='Navrhovaný stav - pomocný'!$C$51,'Navrhovaný stav - pomocný'!$E$51,0)+IF(A133='Navrhovaný stav - pomocný'!$C$52,'Navrhovaný stav - pomocný'!$E$52,0) -> 0 | F135: ='kros seznam'!G160 -> 350 | G135: =E135*F135 -> 0 | H135: 0 | I135: =H135*E135 -> 0 | J135: 0 | L135: ='kros seznam'!M160 -> 0 | M135: =L135*E135 -> 0
A136: ='kros seznam'!B168 -> K | B136: ='kros seznam'!C168 -> 766660171 | C136: ='kros seznam'!D168 -> Montáž dveřních křídel otvíravých 1křídlových š do 0,8 m do obložkové zárubně | D136: ='kros seznam'!E168 -> kus | E136: =E135 -> 0 | F136: ='kros seznam'!G168 -> 538 | G136: =E136*F136 -> 0 | H136: 0 | I136: =H136*E136 -> 0 | J136: ='kros seznam'!K168 -> 0 | L136: ='kros seznam'!L168 -> 1.805 | M136: =L136*E136 -> 0
A137: ='kros seznam'!B171 -> M | B137: ='kros seznam'!C171 -> 611617210 | C137: ='kros seznam'!D171 -> dveře vnitřní 1křídlové 80x197 cm | D137: ='kros seznam'!E171 -> kus | E137: =E136 -> 0 | F137: ='Navrhovaný stav'!L48 -> 1500 | G137: =E137*F137 -> 0 | H137: ='kros seznam'!J171 -> 0.016 | I137: =H137*E137 -> 0 | J137: ='kros seznam'!K171 -> 0 | L137: ='kros seznam'!L171 -> 0 | M137: =L137*E137 -> 0
A138: ='kros seznam'!B174 -> K | B138: ='kros seznam'!C174 -> 766682111 | C138: ='kros seznam'!D174 -> Montáž zárubní obložkových pro dveře jednokřídlové tl stěny do 170 mm | D138: ='kros seznam'!E174 -> kus | E138: =E137 -> 0 | F138: ='kros seznam'!G174 -> 945 | G138: =E138*F138 -> 0 | H138: 0 | I138: =H138*E138 -> 0 | J138: ='kros seznam'!K172 -> 0 | L138: 2.925 | M138: =L138*E138 -> 0
A139: ='kros seznam'!B175 -> M | B139: ='kros seznam'!C175 -> 611822580 | C139: ='kros seznam'!D175 -> zárubeň obložková pro dveře 1křídlové 60,70,80,90x197 cm, tl. 8 - 17 cm | D139: ='kros seznam'!E175 -> kus | E139: =E138 -> 0 | F139: ='kros seznam'!G175 -> 2870 | G139: =E139*F139 -> 0 | H139: ='kros seznam'!J175 -> 0.016 | I139: =H139*E139 -> 0 | J139: ='kros seznam'!K175 -> 0 | L139: ='kros seznam'!L175 -> 0 | M139: =L139*E139 -> 0
A141: DVEŘE OBLOŽKOVÉ ZÁRUBNĚ 90 cm
A142: ='kros seznam'!B159 -> D | B142: ='kros seznam'!C159 -> 766 | C142: ='kros seznam'!D159 -> Konstrukce truhlářské | G142: =SUM(G143:G147) -> 0 | H142: 0.03545 | I142: 0 | J142: 0 | L142: 4.881 | M142: 0
A143: ='kros seznam'!B160 -> K | B143: ='kros seznam'!C160 -> 766X | C143: ='kros seznam'!D160 -> Dveřního kování D+M | D143: ='kros seznam'!E160 -> kus | E143: =IF(A141='Navrhovaný stav - pomocný'!$C$51,'Navrhovaný stav - pomocný'!$E$51,0)+IF(A141='Navrhovaný stav - pomocný'!$C$52,'Navrhovaný stav - pomocný'!$E$52,0) -> 0 | F143: ='kros seznam'!G160 -> 350 | G143: =F143*E143 -> 0 | H143: 0 | I143: ='kros seznam'!J160 -> 0 | J143: 0 | L143: 0 | M143: =L143*E143 -> 0
A144: ='kros seznam'!B172 -> K | B144: ='kros seznam'!C172 -> 766660172 | C144: ='kros seznam'!D172 -> Montáž dveřních křídel otvíravých 1křídlových š přes 0,8 m do obložkové zárubně | D144: ='kros seznam'!E172 -> kus | E144: =+E143 -> 0 | F144: ='kros seznam'!G172 -> 574 | G144: =F144*E144 -> 0 | H144: ='kros seznam'!J172 -> 0 | I144: =E144*H144 -> 0 | J144: ='kros seznam'!K172 -> 0 | L144: ='kros seznam'!L172 -> 1.956 | M144: =L144*E144 -> 0
A145: ='kros seznam'!B173 -> M | B145: ='kros seznam'!C173 -> 611617250 | C145: ='kros seznam'!D173 -> dveře vnitřní 1křídlové 90x197 cm | D145: ='kros seznam'!E173 -> kus | E145: =+E144 -> 0 | F145: ='Navrhovaný stav'!L48 -> 1500 | G145: =F145*E145 -> 0 | H145: ='kros seznam'!J173 -> 0.019 | I145: =E145*H145 -> 0 | J145: ='kros seznam'!K173 -> 0 | L145: ='kros seznam'!L173 -> 0 | M145: =L145*E145 -> 0
A146: ='kros seznam'!B174 -> K | B146: ='kros seznam'!C174 -> 766682111 | C146: ='kros seznam'!D174 -> Montáž zárubní obložkových pro dveře jednokřídlové tl stěny do 170 mm | D146: ='kros seznam'!E174 -> kus | E146: =+E145 -> 0 | F146: ='kros seznam'!G174 -> 945 | G146: =F146*E146 -> 0 | H146: ='kros seznam'!J174 -> 0.00045 | I146: =E146*H146 -> 0 | J146: ='kros seznam'!K174 -> 0 | L146: ='kros seznam'!L174 -> 2.925 | M146: =L146*E146 -> 0
A147: ='kros seznam'!B175 -> M | B147: ='kros seznam'!C175 -> 611822580 | C147: ='kros seznam'!D175 -> zárubeň obložková pro dveře 1křídlové 60,70,80,90x197 cm, tl. 8 - 17 cm | D147: ='kros seznam'!E175 -> kus | E147: =+E146 -> 0 | F147: ='kros seznam'!G175 -> 2870 | G147: =F147*E147 -> 0 | H147: ='kros seznam'!J175 -> 0.016 | I147: =E147*H147 -> 0 | J147: ='kros seznam'!K175 -> 0 | L147: ='kros seznam'!L175 -> 0 | M147: =L147*E147 -> 0
A149: PŘEKLAD YTONG
A150: ='kros seznam'!B3 -> D | B150: ='kros seznam'!C3 -> 3 | C150: ='kros seznam'!D3 -> Svislé a kompletní konstrukce | G150: =SUM(G151) -> 0 | H150: 0.03304 | I150: 0 | J150: 0 | L150: 0.232 | M150: 0
A151: ='kros seznam'!B8 -> K | B151: ='kros seznam'!C8 -> 317142321 | C151: ='kros seznam'!D8 -> Překlady nenosné přímé z pórobetonu Ytong v příčkách tl 125 mm pro světlost otvoru do 1010 mm | D151: ='kros seznam'!E8 -> kus | E151: ='Navrhovaný stav'!D38+'Navrhovaný stav'!E38+'Navrhovaný stav'!F38+'Navrhovaný stav'!G38 -> 0 | F151: ='kros seznam'!G8 -> 414 | G151: =F151*E151 -> 0 | H151: ='kros seznam'!J8 -> 0.03304 | I151: =E151*H151 -> 0 | J151: ='kros seznam'!K8 -> 0 | L151: ='kros seznam'!L8 -> 0.232 | M151: =L151*E151 -> 0
A153: PŘEKLAD POROTHERM
A154: ='kros seznam'!B3 -> D | B154: ='kros seznam'!C3 -> 3 | C154: ='kros seznam'!D3 -> Svislé a kompletní konstrukce | G154: =SUM(G155) -> 0 | H154: 0.01726 | I154: 0 | J154: 0 | L154: 0.238 | M154: 0
A155: ='kros seznam'!B9 -> K | B155: ='kros seznam'!C9 -> 317168111 | C155: ='kros seznam'!D9 -> Překlad keramický plochý š 11,5 cm dl 100 cm | D155: ='kros seznam'!E9 -> kus | E155: ='Navrhovaný stav'!D38+'Navrhovaný stav'!E38+'Navrhovaný stav'!F38+'Navrhovaný stav'!G38 -> 0 | F155: ='kros seznam'!G9 -> 206 | G155: =F155*E155 -> 0 | H155: ='kros seznam'!J9 -> 0.01726 | I155: =E155*H155 -> 0 | J155: ='kros seznam'!K9 -> 0 | L155: ='kros seznam'!L9 -> 0.238 | M155: =L155*E155 -> 0
A157: SDK PODHLED ANO
A158: ='kros seznam'!B132 -> D | B158: ='kros seznam'!C132 -> 763 | C158: ='kros seznam'!D132 -> Konstrukce montované z desek, dílců a panelů | G158: =SUM(G159:G160) -> 2504.60208 | H158: =SUM(H159:H160) -> 0.01314 | I158: 0.055061856 | J158: 0 | L158: 1.008 | M158: 4.2239232
A159: ='kros seznam'!B140 -> K | B159: ='kros seznam'!C140 -> 763131451 | C159: ='kros seznam'!D140 -> SDK podhled deska 1xH2 12,5 bez TI dvouvrstvá spodní kce profil CD+UD | D159: ='kros seznam'!E140 -> m2 | E159: ='Navrhovaný stav - pomocný'!E16 -> 4.1904 | F159: ='kros seznam'!G140 -> 574 | G159: =F159*E159 -> 2405.2896 | H159: ='kros seznam'!J140 -> 0.01314 | I159: =E159*H159 -> 0.055061856 | J159: ='kros seznam'!K140 -> 0 | L159: ='kros seznam'!L140 -> 0.968 | M159: =L159*E159 -> 4.0563072
A160: ='kros seznam'!B133 -> K | B160: ='kros seznam'!C133 -> 763131714 | C160: ='kros seznam'!D133 -> SDK podhled základní penetrační nátěr | D160: ='kros seznam'!E133 -> m2 | E160: ='Navrhovaný stav - pomocný'!E16 -> 4.1904 | F160: ='kros seznam'!G133 -> 23.7 | G160: =F160*E160 -> 99.31248 | H160: 0 | I160: 0 | J160: ='kros seznam'!K141 -> 0 | L160: 0.04 | M160: =L160*E160 -> 0.167616
A161: ='kros seznam'!B269 -> D | B161: ='kros seznam'!C269 -> 784 | C161: ='kros seznam'!D269 -> Dokončovací práce - malby | G161: =SUM(G162) -> 66.62736 | H161: 0.00016 | I161: 0.000670464 | J161: 0 | L161: 0.041 | M161: 0.1718064
A162: ='kros seznam'!B270 -> K | B162: ='kros seznam'!C270 -> 784453601 | C162: ='kros seznam'!D270 -> Malby směsi PRIMALEX tekuté hlinkové bílé dvojnásobné v místnostech v do 3,8 m | D162: ='kros seznam'!E270 -> m2 | E162: ='Navrhovaný stav - pomocný'!E16 -> 4.1904 | F162: ='kros seznam'!G270 -> 15.9 | G162: =F162*E162 -> 66.62736 | H162: ='kros seznam'!J270 -> 0.00016 | I162: =E162*H162 -> 0.000670464 | J162: ='kros seznam'!K270 -> 0 | L162: ='kros seznam'!L270 -> 0.041 | M162: =L162*E162 -> 0.1718064
A164: SDK PODHLED NE
A165: ='kros seznam'!B16 -> D | B165: ='kros seznam'!C16 -> 6 | C165: ='kros seznam'!D16 -> Úpravy povrchů, podlahy a osazování výplní | G165: =SUM(G166:G167) -> 528.870384 | H165: 0.0060445 | I165: 0.0253288728 | J165: 0 | L165: 0.328 | M165: 1.3744512
A166: ='kros seznam'!B19 -> K | B166: ='kros seznam'!C19 -> 611471621 | C166: ='kros seznam'!D19 -> Vyspravení vnitřních prefabrikovaných stropů stěrkovou hmotou do 20 % plochy | D166: ='kros seznam'!E19 -> m2 | E166: ='Navrhovaný stav - pomocný'!E16 -> 4.1904 | F166: ='kros seznam'!G19 -> 45.2 | G166: =F166*E166 -> 189.40608 | H166: ='kros seznam'!J19 -> 0.00154 | I166: =E166*H166 -> 0.006453216 | J166: ='kros seznam'!K19 -> 0 | L166: ='kros seznam'!L19 -> 0.078 | M166: =L166*E166 -> 0.3268512
A167: ='kros seznam'!B21 -> K | B167: ='kros seznam'!C21 -> 614471412 | C167: ='kros seznam'!D21 -> Tenkovrstvá úprava vnitřních panelů tl do 3 mm aktivovaným štukem (strop) | D167: ='kros seznam'!E21 -> m2 | E167: ='Navrhovaný stav - pomocný'!E16 -> 4.1904 | F167: ='kros seznam'!G21 -> 81.01 | G167: =F167*E167 -> 339.464304 | H167: ='kros seznam'!J21 -> 0.0045045 | I167: =E167*H167 -> 0.0188756568 | J167: ='kros seznam'!K21 -> 0 | L167: ='kros seznam'!L21 -> 0.25 | M167: =L167*E167 -> 1.0476
A168: ='kros seznam'!B269 -> D | B168: ='kros seznam'!C269 -> 784 | C168: ='kros seznam'!D269 -> Dokončovací práce - malby | G168: =SUM(G169) -> 66.62736 | H168: 0.00016 | I168: 0.000670464 | J168: 0 | L168: 0.041 | M168: 0.1718064
A169: ='kros seznam'!B270 -> K | B169: ='kros seznam'!C270 -> 784453601 | C169: ='kros seznam'!D270 -> Malby směsi PRIMALEX tekuté hlinkové bílé dvojnásobné v místnostech v do 3,8 m | D169: ='kros seznam'!E270 -> m2 | E169: ='Navrhovaný stav - pomocný'!E16 -> 4.1904 | F169: ='kros seznam'!G270 -> 15.9 | G169: =F169*E169 -> 66.62736 | H169: ='kros seznam'!J270 -> 0.00016 | I169: =E169*H169 -> 0.000670464 | J169: ='kros seznam'!K270 -> 0 | L169: ='kros seznam'!L270 -> 0.041 | M169: =L169*E169 -> 0.1718064
A171: DEMONTÁŽ BJ
A172: ='kros seznam'!B132 -> D | B172: ='kros seznam'!C132 -> 763 | C172: ='kros seznam'!D132 -> Konstrukce montované z desek, dílců a panelů | G172: =SUM(G173:G176) -> 3368.9536 | H172: 0 | I172: 0 | J172: 0.09065 | K172: 1.74085505 | L172: 0.844 | M172: 12.0826244
A173: ='kros seznam'!B135 -> K | B173: ='kros seznam'!C135 -> 763111811 | C173: ='kros seznam'!D135 -> Demontáž SDK příčky s jednoduchou ocelovou nosnou konstrukcí opláštění jednoduché | D173: ='kros seznam'!E135 -> m2 | E173: ='Stávající stav - pomocný'!F17 -> 45.655 | F173: ='kros seznam'!G135 -> 55.2 | G173: =F173*E173 -> 2520.156 | H173: ='kros seznam'!J135 -> 0 | I173: =E173*H173 -> 0 | J173: ='kros seznam'!K135 -> 0.03175 | K173: =J173*E173 -> 1.44954625 | L173: ='kros seznam'!L135 -> 0.198 | M173: =L173*E173 -> 9.03969
A174: ='kros seznam'!B136 -> K | B174: ='kros seznam'!C136 -> 763131831 | C174: ='kros seznam'!D136 -> Demontáž SDK podhledu s jednovrstvou nosnou kcí z ocelových profilů opláštění jednoduché | D174: ='kros seznam'!E136 -> m2 | E174: ='Stávající stav - pomocný'!F18 -> 5.3264 | F174: ='kros seznam'!G136 -> 61.6 | G174: =F174*E174 -> 328.10624 | H174: ='kros seznam'!J136 -> 0 | I174: =E174*H174 -> 0 | J174: ='kros seznam'!K136 -> 0.01725 | K174: =J174*E174 -> 0.0918804 | L174: ='kros seznam'!L136 -> 0.221 | M174: =L174*E174 -> 1.1771344
A175: ='kros seznam'!B137 -> K | B175: ='kros seznam'!C137 -> 763151811 | C175: ='kros seznam'!D137 -> Demontáž jedné vrstvy desek SDK podlaha | D175: ='kros seznam'!E137 -> m2 | E175: ='Stávající stav - pomocný'!F18 -> 5.3264 | F175: ='kros seznam'!G137 -> 34.9 | G175: =F175*E175 -> 185.89136 | H175: ='kros seznam'!J137 -> 0 | I175: =E175*H175 -> 0 | J175: ='kros seznam'!K137 -> 0.02475 | K175: 0.1318284 | L175: ='kros seznam'!L137 -> 0.125 | M175: =L175*E175 -> 0.6658
A176: ='kros seznam'!B138 -> K | B176: ='kros seznam'!C138 -> 763181811 | C176: ='kros seznam'!D138 -> Demontáž jednokřídlové kovové zárubně v do 2,75 m SDK příčka | D176: ='kros seznam'!E138 -> kus | E176: ='Stávající stav - pomocný'!E19 -> 4 | F176: ='kros seznam'!G138 -> 83.7 | G176: =F176*E176 -> 334.8 | H176: ='kros seznam'!J138 -> 0 | I176: =E176*H176 -> 0 | J176: ='kros seznam'!K138 -> 0.0169 | K176: 0.0676 | L176: ='kros seznam'!L138 -> 0.3 | M176: =L176*E176 -> 1.2
A177: ='kros seznam'!B159 -> D | B177: ='kros seznam'!C159 -> 766 | C177: ='kros seznam'!D159 -> Konstrukce truhlářské | G177: =SUM(G178) -> 84.4 | H177: 0 | I177: 0 | J177: 0.024 | K177: 0.096 | L177: 0.05 | M177: 0.2
A178: ='kros seznam'!B161 -> K | B178: ='kros seznam'!C161 -> 766691914 | C178: ='kros seznam'!D161 -> Vyvěšení nebo zavěšení dřevěných křídel dveří pl do 2 m2 | D178: ='kros seznam'!E161 -> kus | E178: ='Stávající stav - pomocný'!E19 -> 4 | F178: ='kros seznam'!G161 -> 21.1 | G178: =F178*E178 -> 84.4 | H178: ='kros seznam'!J161 -> 0 | I178: =E178*H178 -> 0 | J178: ='kros seznam'!K161 -> 0.024 | K178: 0.096 | L178: ='kros seznam'!L161 -> 0.05 | M178: =L178*E178 -> 0.2
A179: ='kros seznam'!B157 -> D | B179: ='kros seznam'!C157 -> 776 | C179: ='kros seznam'!D157 -> Podlahy povlakové | G179: =SUM(G180) -> 378.70704 | H179: 0 | I179: 0 | J179: 0.001 | K179: 0.0053264 | L179: 0.255 | M179: 1.358232
A180: ='kros seznam'!B158 -> K | B180: ='kros seznam'!C158 -> 776511820 | C180: ='kros seznam'!D158 -> Demontáž povlakových podlah lepených s podložkou | D180: ='kros seznam'!E158 -> m2 | E180: ='Stávající stav - pomocný'!F18 -> 5.3264 | F180: ='kros seznam'!G158 -> 71.1 | G180: =F180*E180 -> 378.70704 | H180: ='kros seznam'!J158 -> 0 | I180: =E180*H180 -> 0 | J180: ='kros seznam'!K158 -> 0.001 | K180: 0.0053264 | L180: ='kros seznam'!L158 -> 0.255 | M180: =L180*E180 -> 1.358232
A182: DEMONTÁŽ VANA
A183: ='kros seznam'!B82 -> D | B183: ='kros seznam'!C82 -> 725 | C183: ='kros seznam'!D82 -> Zdravotechnika - zařizovací předměty | G183: =SUM(G184) -> 112 | H183: 0 | I183: 0 | J183: 0.0087492 | K183: 0.0087492 | L183: 0.037076 | M183: 0.037076
A184: ='kros seznam'!B115 -> K | B184: ='kros seznam'!C115 -> 725220832 | C184: ='kros seznam'!D115 -> Demontáž van litinová volná | D184: ='kros seznam'!E115 -> soubor | E184: ='Stávající stav - pomocný'!E5 -> 1 | F184: ='kros seznam'!G115 -> 112 | G184: =F184*E184 -> 112 | H184: ='kros seznam'!J115 -> 0 | I184: =E184*H184 -> 0 | J184: ='kros seznam'!K115 -> 0.0087492 | K184: =J184*E184 -> 0.0087492 | L184: ='kros seznam'!L115 -> 0.037076 | M184: =L184*E184 -> 0.037076
A185: K | B185: 725820802 | C185: Demontáž baterie stojánkové | D185: soubor | E185: ='Stávající stav - pomocný'!E5 -> 1 | F185: 62 | G185: =F185*E185 -> 62 | H185: 0 | I185: =E185*H185 -> 0 | J185: 0.00086 | K185: =J185*E185 -> 0.00086 | L185: 0.222 | M185: =L185*E185 -> 0.222
A187: DEMONTÁŽ UMYVADLO
A188: ='kros seznam'!B82 -> D | B188: ='kros seznam'!C82 -> 725 | C188: ='kros seznam'!D82 -> Zdravotechnika - zařizovací předměty | G188: =SUM(G189) -> 101 | H188: 0 | I188: 0 | J188: 0.00179032 | K188: 0.00179032 | L188: 0.033304 | M188: 0.033304
A189: ='kros seznam'!B114 -> K | B189: ='kros seznam'!C114 -> 725210821 | C189: ='kros seznam'!D114 -> Demontáž umyvadel bez výtokových armatur | D189: ='kros seznam'!E114 -> soubor | E189: ='Stávající stav - pomocný'!E8 -> 1 | F189: ='kros seznam'!G114 -> 101 | G189: =F189*E189 -> 101 | H189: ='kros seznam'!J114 -> 0 | I189: =E189*H189 -> 0 | J189: ='kros seznam'!K114 -> 0.00179032 | K189: =J189*E189 -> 0.00179032 | L189: ='kros seznam'!L114 -> 0.033304 | M189: =L189*E189 -> 0.033304
A190: K | B190: 725820802 | C190: Demontáž baterie stojánkové | D190: soubor | E190: ='Stávající stav - pomocný'!E8 -> 1 | F190: 62 | G190: =F190*E190 -> 62 | H190: 0 | I190: =E190*H190 -> 0 | J190: 0.00086 | K190: =J190*E190 -> 0.00086 | L190: 0.222 | M190: =L190*E190 -> 0.222
A192: DEMONTÁŽ WC
A193: ='kros seznam'!B82 -> D | B193: ='kros seznam'!C82 -> 725 | C193: ='kros seznam'!D82 -> Zdravotechnika - zařizovací předměty | G193: =SUM(G194) -> 0 | H193: 0 | I193: 0 | J193: 0.00177836 | K193: 0 | L193: 0.050416 | M193: 0
A194: ='kros seznam'!B113 -> K | B194: ='kros seznam'!C113 -> 725110811 | C194: ='kros seznam'!D113 -> Demontáž klozetů splachovací s nádrží | D194: ='kros seznam'!E113 -> soubor | E194: ='Stávající stav - pomocný'!E7 -> 0 | F194: ='kros seznam'!G113 -> 153 | G194: =F194*E194 -> 0 | H194: ='kros seznam'!J113 -> 0 | I194: =E194*H194 -> 0 | J194: ='kros seznam'!K113 -> 0.00177836 | K194: =J194*E194 -> 0 | L194: ='kros seznam'!L113 -> 0.050416 | M194: =L194*E194 -> 0
A196: DEMONTÁŽ SPRCHA
